Cogmind - Beta 11.1 @@@ ROGUE MODE // 2022.12.07 @ 05:08:45 Player: ktur Result: Fortifying 0b10! Performance ------------- Evolutions (9) 4500 Regions Visited (35) 7000 Robots Destroyed (476) 2380 Value Destroyed (26873) 26873 Prototype IDs (109) 2180 Alien Tech Used (7) 1400 Bonus (31171) 31171 TOTAL SCORE: 75504 Bonus ------- High Alert Combat Kills 6442 Follower Combat Kills 6053 Entered Garrisons 1200 Used RIF Installer 3000 Network Hubs Disabled 200 Aligned with FarCom 300 Met Zhirov 300 Built Enhanced Grunts 300 A7 Reached Mainframe 300 Met R17 at Cetus 500 Found Hidden Lab 3000 Scanned by Researcher 500 Met MAIN.C 5000 Destroyed MAIN.C Shell 5000 Win 3000 Friendly Fire -3924 Cogmind --------- Core Integrity 932/1600 Matter 236/300 Energy 740/740 System Corruption 33% Temperature Cool (0) Movement Walking (97) Location By MAIN.C's Side Parts ------- > --- POWER (3) -------- Improved Quantum Reactor Improved Quantum Reactor Zero-point Reactor > --- PROPULSION (8) --- High-density Centrium Leg High-density Centrium Leg Experimental Biometal Leg Experimental Biometal Leg Experimental Biometal Leg Experimental Biometal Leg Experimental Biometal Leg Experimental Biometal Leg > --- UTILITY (14) ----- Experimental Cooling System Spectral Analyzer Advanced Targeting Computer Advanced Targeting Computer Experimental Core Analyzer Experimental Core Analyzer Experimental Weapon Cycler Experimental Core Shielding Centrium Medium Armor Plating Centrium Medium Armor Plating Heavy Reactive Plating AEGIS Remote Shield Advanced Dynamic Insulation System > --- WEAPON (1) ------- Graviton Cannon > --- INVENTORY (5) ---- Improved Energy Well (400) Advanced Energy Well (500) Advanced Matter Compressor (400) AEGIS Remote Shield Enhanced Nova Cannon Peak State ------------ > --- POWER ------------ Zero-point Reactor Vortex Chain Reactor > --- PROPULSION ------- High-density Centrium Leg High-density Centrium Leg Experimental Biometal Leg Experimental Biometal Leg Experimental Biometal Leg Experimental Biometal Leg Experimental Biometal Leg Improved Diametric Drive > --- UTILITY ---------- Advanced Matter Compressor Spectral Analyzer Experimental Signal Interpreter Advanced Targeting Computer Core Analyzer Experimental Armor Integrity Analyzer Advanced Weapon Cycler Experimental Weapon Cycler Femtoactuators Experimental Cloaking Device AEGIS Remote Shield Advanced Hacking Suite Quantum Router Experimental System Purifier > --- WEAPON ----------- Graviton Cannon > --- INVENTORY -------- Improved Energy Well Advanced Energy Well Transdimensional Reconstructor Heavy Quantum Rifle Enhanced Nova Cannon [Rating: 240] Favorites ----------- Power Heavy Deuterium Engine Engine Heavy Deuterium Engine Power Core Enhanced Nuclear Core Reactor Heavy Antimatter Reactor Propulsion Light Treads Treads Light Treads Leg Experimental Biometal Leg Hover Unit Aerolev Unit Flight Unit Improved Diametric Drive Utility Advanced Targeting Computer Device Transmission Jammer Storage Huge Storage Unit Processor Advanced Targeting Computer Hackware Relay Coupler [Grunt] Protection Hardened Heavy Armor Plating Artifact Core Physics Calibrator Weapon Enhanced Autogun Energy Gun Heavy EM Pulse Gun Energy Cannon Cooled Particle Cannon Ballistic Gun Enhanced Autogun Ballistic Cannon Linear Accelerator Launcher Long-range Missile Launcher Special Weapon Remote Datajack Slashing Weapon Katana Special Melee Weapon Datajack Build | -11 -10 -10 -10 -9 -8 -8 -8 -8 -7 -7 -7 -7 -6 -6 -6 -6 -5 -5 -5 -5 -5 -5 -5 -4 -4 -4 -4 -4 -3 -3 -3 -2 -2 -1 -1 ------- Run | Scr Mat Min Exi Min Mat Gar Mat Gar Fac Gar Fac Gar Fac Gar Fac Gar Fac Was Fac Ext Cet Arc Hub Fac Was Fac Arm Lab Res Qua Sec Res Tes Acc Com Slots Evolved 18 | . . . . . 4 . . . 2 . . . 2 . . . 2 . . . . . . 2 . . . . 2 . . 2 . 2 . Power 1 | . . . . . . . . . . . . . . . . . . . . . . . . 1 . . . . . . . . . . . Propulsion 6 | . . . . . . . . . 1 . . . 1 . . . . . . . . . . . . . . . 2 . . . . 2 . Utility 12 | . . . . . 3 . . . 1 . . . 1 . . . 2 . . . . . . 1 . . . . . . . 1 . 3 . Weapon -1 | . . . . . 1 . . . . . . . . . . . . . . . . . . . . . . . . . . 1 . -3 . Parts Attached 566 | 6 8 . 4 1 24 10 17 5 22 5 27 9 4 29 11 7 19 9 9 5 15 . 16 58 12 20 50 7 35 39 1 1 16 12 53 Power 49 | 1 1 . . . 2 1 1 . 3 . 1 . . 3 . . 1 1 . . 2 . 1 6 3 3 3 1 . 5 . 1 1 1 7 Engine 11 | 1 1 . . . 2 1 1 . 2 . . . . 2 . . . . . . . . 1 . . . . . . . . . . . . Core 8 | . . . . . . . . . 1 . 1 . . 1 . . 1 . . . . . . 3 . . 1 . . . . . . . . Reactor 30 | . . . . . . . . . . . . . . . . . . 1 . . 2 . . 3 3 3 2 1 . 5 . 1 1 1 7 Propulsion 120 | 2 1 . 1 1 5 3 3 . 6 . 5 1 1 4 1 . 2 2 1 1 3 . 1 14 4 1 11 1 10 14 . . 2 3 16 Treads 75 | 2 1 . 1 1 4 3 3 . 6 . 5 1 1 4 1 . 2 2 1 1 3 . 1 3 4 1 9 1 8 6 . . . . . Leg 30 | . . . . . . . . . . . . . . . . . . . . . . . . 11 . . . . 2 3 . . . . 14 Wheel . | . . . . . . . . . . . . . . . . . . . . . . . . . . . . . . . . . . . . Hover 2 | . . . . . 1 . . . . . . . . . . . . . . . . . . . . . 1 . . . . . . . . Flight 13 | . . . . . . . . . . . . . . . . . . . . . . . . . . . 1 . . 5 . . 2 3 2 Utility 179 | 1 4 . . . 11 2 4 5 5 1 16 3 1 10 1 1 6 3 2 . 3 . 7 14 2 6 6 4 12 7 1 . 8 8 25 Device 82 | . 1 . . . 1 2 1 3 2 1 11 2 1 2 . . 2 1 . . 3 . 4 5 2 4 3 2 7 2 . . 5 4 11 Storage 20 | 1 2 . . . 7 . 1 . 1 . 1 . . . . . 1 . . . . . . . . . 2 . 1 . . . 2 . 1 Processor 21 | . 1 . . . . . 1 . . . . . . . . . 1 . 1 . . . . 5 . 1 . . 2 . . . 1 1 7 Hackware 24 | . . . . . . . . 2 1 . 2 1 . 3 1 1 . 1 . . . . . 3 . 1 . 1 1 3 . . . 3 . Protection 30 | . . . . . 3 . 1 . 1 . 2 . . 5 . . 2 1 1 . . . 3 1 . . 1 1 1 1 . . . . 6 Artifact 2 | . . . . . . . . . . . . . . . . . . . . . . . . . . . . . . 1 1 . . . . Weapon 218 | 2 2 . 3 . 6 4 9 . 8 4 5 5 2 12 9 6 10 3 6 4 7 . 7 24 3 10 30 1 13 13 . . 5 . 5 Energy Gun 26 | . 2 . 2 . 6 2 1 . . . . . . . 1 . . . . . 1 . . 7 1 3 . . . . . . . . . Energy Cannon 63 | . . . . . . . . . 3 2 3 2 1 5 5 2 6 1 2 2 1 . . 7 . . 3 . 5 6 . . 4 . 3 Ballistic Gun 59 | 2 . . . . . . 7 . 4 . . 1 1 2 1 1 2 1 1 . 5 . 4 4 . 3 14 . 5 1 . . . . . Ballistic Cannon 25 | . . . . . . . . . . . . . . . . . . . . . . . . . . 3 13 1 2 4 . . . . 2 Launcher 14 | . . . . . . 1 . . 1 . 1 . . . 1 . . . 1 1 . . 3 2 . . . . 1 1 . . 1 . . Special Weapon 26 | . . . . . . . . . . 1 1 2 . 5 1 2 2 1 2 1 . . . 4 2 1 . . . 1 . . . . . Impact Weapon . | . . . . . . . . . . . . . . . . . . . . . . . . . . . . . . . . . . . . Slashing Weapon 1 | . . . . . . . 1 . . . . . . . . . . . . . . . . . . . . . . . . . . . . Piercing Weapon . | . . . . . . . . . . . . . . . . . . . . . . . . . . . . . . . . . . . . Special Melee Weapon 4 | . . . 1 . . 1 . . . 1 . . . . . 1 . . . . . . . . . . . . . . . . . . . Unidentified Prototypes 61 | . . . . . 4 . 1 . 2 . 1 . . . 3 . 1 . 1 . 3 . 1 2 . . 3 2 5 6 3 1 7 . 15 Corrupted Parts 9 | . . . . . . 2 . . . . . . . . . . . . . . . . . . . . 1 . . . . . . . 6 System Corruption 28 | . . . . . . 4 . . . . . . . . . . . . . . . . . . . . 6 . . . . . . . 18 Parts Lost 99 | . . . . . . 5 1 . . . 1 . . 1 . . 3 . . . 1 . 9 23 . . 15 . 10 11 . 1 2 . 16 Power 11 | . . . . . . . . . . . . . . . . . . . . . . . 1 3 . . 2 . . 4 . . . . 1 Propulsion 20 | . . . . . . 2 . . . . . . . 1 . . 2 . . . . . . 5 . . 1 . 3 3 . . . . 3 Utility 42 | . . . . . . 1 1 . . . 1 . . . . . 1 . . . 1 . 4 6 . . 8 . 5 2 . 1 1 . 10 Weapon 26 | . . . . . . 2 . . . . . . . . . . . . . . . . 4 9 . . 4 . 2 2 . . 1 . 2 Highest Loss Streak 10 | . . . . . . 4 1 . . . 1 . . 1 . . 2 . . . 1 . 9 6 . . 7 . 3 2 . 1 2 . 10 To Critical Strikes 2 | . . . . . . . . . . . . . . . . . . . . . . . 1 . . . . . . 1 . . . . . Average Slot Usage (%) 88 | . 98 100 100 100 90 79 89 90 91 91 91 92 88 96 99 100 92 92 88 88 86 82 73 76 81 88 80 62 74 67 74 62 69 84 86 Engine 4 | . 14 14 14 14 9 9 9 9 7 7 5 . . 1 6 6 3 . . . . . 1 . . . . . . . . . . . . Core 1 | . . . . . . . . . . . 1 7 6 4 . . 1 3 . . . . . 6 2 . . 5 4 . . . . . . Reactor 1 | . . . . . . . . . . . . . . . . . . 1 5 5 5 5 3 . 7 10 8 1 4 5 4 4 4 5 6 Treads 18 | . 27 28 28 28 17 17 18 18 22 23 22 23 26 25 26 26 22 21 17 17 15 11 11 11 8 10 9 10 12 8 . . . . . Device 8 | . 2 . . . 8 11 9 8 7 13 7 7 8 12 6 6 9 5 4 . 2 11 10 8 11 15 15 5 15 1 4 4 9 13 15 Storage 7 | . 14 14 14 14 17 14 9 9 7 7 7 7 6 6 6 6 5 5 5 5 5 5 5 5 5 5 8 10 5 7 . . 2 3 2 Processor 8 | . 10 14 14 14 . . 8 9 7 7 7 7 6 6 6 6 5 5 5 11 9 5 5 13 10 14 10 5 9 14 13 8 8 7 16 Hackware 8 | . . . . . . . . . 7 1 7 7 6 9 15 20 17 22 20 17 17 17 9 11 15 15 8 2 4 11 19 16 16 22 8 Protection 5 | . . . . . 8 9 9 9 6 7 6 7 6 6 10 6 5 5 7 11 8 5 4 . . . . 5 1 . 4 4 . . 3 Energy Gun 3 | . . 28 19 28 26 16 . . . . . . . . . . . . . . . . . 2 4 5 . . . . . . . . . Energy Cannon 4 | . . . . . . . . . 2 6 6 6 6 6 12 12 10 10 11 10 1 . . 5 . . . 5 3 3 4 4 3 3 1 Ballistic Gun 9 | . 27 . . . . . 25 27 19 15 15 15 12 12 5 5 5 1 5 5 15 17 16 4 . . 11 . 5 . . . . . . Naked Turns . | . . . . . . . . . . . . . . . . . . . . . . . . . . . . . . . . . . . . Heaviest Build 215 | 14 31 31 31 31 123 84 121 119 129 127 127 123 124 141 141 121 215 134 156 153 159 139 171 122 123 141 157 172 177 161 38 38 33 54 133 Greatest Support 232 | 40 40 40 40 40 40 42 42 42 65 65 70 70 90 90 82 82 97 125 125 124 160 160 160 126 140 140 150 150 230 175 38 38 45 61 232 Greatest Overweight (x) 4 | . . . . . 3 3 2 2 2 1 1 1 1 1 1 1 2 1 1 1 1 . 1 2 1 1 1 1 2 4 . . . . 2 Average Overweight (x) . | . . . . . 1 1 1 2 1 1 1 1 1 1 1 1 1 1 1 1 . . . . . . . . . . . . . . . Largest Inventory Capacity 25 | 8 15 15 15 15 25 20 25 25 25 25 25 25 25 25 25 25 25 25 25 25 25 25 25 25 25 25 25 25 25 25 5 5 5 5 5 Average Capacity 22 | 7 13 15 15 15 18 20 22 25 25 25 25 25 25 25 25 25 25 25 25 25 25 25 25 25 25 25 25 25 25 24 5 5 5 5 5 Most Carried 25 | 6 15 15 15 15 20 20 25 25 25 25 25 25 25 25 25 25 25 25 25 25 25 25 25 25 25 25 25 25 25 24 4 3 5 5 5 Average Carried 22 | 3 13 15 14 14 17 19 22 24 24 24 24 25 24 24 24 24 24 24 24 25 24 25 24 23 24 24 24 23 24 20 4 3 4 5 4 Final Capacity 25 | 8 15 15 15 15 20 20 25 25 25 25 25 25 25 25 25 25 25 25 25 25 25 25 25 25 25 25 25 25 25 5 5 5 5 5 5 Final Carried 25 | 6 15 15 15 15 20 18 25 25 25 25 25 25 25 25 25 24 25 25 25 25 25 25 22 25 24 25 22 24 19 4 4 3 5 5 5 Class Distribution -------------------- 23% | Gunner 15% | Mutant 11% | Bothacker-Gunner 9% | Skirmisher 9% | Bothacker-Tank 8% | Tank 5% | Scavenger-Gunner 3% | Scavenger-Mutant 3% | Hacker-Mutant 3% | Bothacker-Mutant Dominant Class ---------------- Mutant | -10/Materials Mutant | -10/Mines Mutant | -10/Exiles Mutant | -9/Mines Tank | -8/Materials Mutant | -8/Garrison Skirmisher | -8/Materials Skirmisher | -8/Garrison Gunner | -7/Factory Gunner | -7/Garrison Gunner | -7/Factory Gunner | -7/Garrison Gunner | -6/Factory Bothacker-Gunner | -6/Garrison Bothacker-Tank | -6/Factory Bothacker-Gunner | -6/Garrison Bothacker-Gunner | -5/Factory Bothacker-Mutant | -5/Waste Bothacker-Gunner | -5/Factory Bothacker-Tank | -5/Extension Bothacker-Tank | -5/Cetus Bothacker-Tank | -5/Archives Scavenger-Tank | -5/Hub_04(d) Scavenger-Gunner | -4/Factory Scavenger-Mutant | -4/Waste Scavenger-Mutant | -4/Factory Scavenger-Gunner | -4/Armory Mutant | -4/Lab Tank | -3/Research Hacker-Mutant | -3/Quarantine Hacker-Sprinter | -3/Section 7 Hacker-Sprinter | -2/Research Hacker-Sprinter | -2/Testing Hacker-Sprinter | -1/Access Generator-Mutant | -1/Command Resources | -11 -10 -10 -10 -9 -8 -8 -8 -8 -7 -7 -7 -7 -6 -6 -6 -6 -5 -5 -5 -5 -5 -5 -5 -4 -4 -4 -4 -4 -3 -3 -3 -2 -2 -1 -1 ----------- Run | Scr Mat Min Exi Min Mat Gar Mat Gar Fac Gar Fac Gar Fac Gar Fac Gar Fac Was Fac Ext Cet Arc Hub Fac Was Fac Arm Lab Res Qua Sec Res Tes Acc Com Matter Collected 16547 | 191 602 48 . 45 240 142 851 327 723 519 828 461 25 749 215 143 413 217 179 250 294 . 360 1140 154 309 1948 200 1437 1127 4 . 192 . 2214 Remotely . | . . . . . . . . . . . . . . . . . . . . . . . . . . . . . . . . . . . . Salvage Created 25040 | . 681 93 . 67 732 571 1213 509 884 884 1272 729 25 872 695 337 1186 . 118 242 30 . 573 2284 700 126 2375 . 3481 3164 . . 192 . 1005 Parts 1129 | . 43 4 . 14 43 21 65 19 57 38 60 23 1 38 30 12 52 . 9 7 1 . 29 99 20 . 112 . 172 125 . . 4 . 31 Haulers Intercepted 15 | . 2 . . . 2 . 3 . 1 . 3 . . . 2 . 1 . . . . . . . . . . . 1 . . . . . . Recyclers Shooed 18 | . 1 . . 1 1 . . . . . 2 . . . 1 . 3 . 1 2 . . . 1 . . . . 2 1 . . 1 . 1 Parts Field Recycled . | . . . . . . . . . . . . . . . . . . . . . . . . . . . . . . . . . . . . Retrieved Matter . | . . . . . . . . . . . . . . . . . . . . . . . . . . . . . . . . . . . . Parts Self-Destructed . | . . . . . . . . . . . . . . . . . . . . . . . . . . . . . . . . . . . . Prevented . | . . . . . . . . . . . . . . . . . . . . . . . . . . . . . . . . . . . . Kills | -11 -10 -10 -10 -9 -8 -8 -8 -8 -7 -7 -7 -7 -6 -6 -6 -6 -5 -5 -5 -5 -5 -5 -5 -4 -4 -4 -4 -4 -3 -3 -3 -2 -2 -1 -1 ------- Run | Scr Mat Min Exi Min Mat Gar Mat Gar Fac Gar Fac Gar Fac Gar Fac Gar Fac Was Fac Ext Cet Arc Hub Fac Was Fac Arm Lab Res Qua Sec Res Tes Acc Com Combat Hostiles Destroyed 367 | . 13 2 . 3 10 12 22 10 13 18 22 13 . 16 8 7 13 . 2 6 1 . 9 28 . 2 31 . 41 53 . . . . 12 Melee 2 | . . . . . . . . . . . . . . . . . . . . . . . . . . . 1 . . 1 . . . . . Guns 158 | . 13 1 . 1 6 6 22 10 11 9 9 6 . 7 2 . 2 . . 1 1 . 2 9 . 1 20 . 15 4 . . . . . Cannons 144 | . . . . . . . . . 2 9 11 7 . 9 6 7 11 . 2 2 . . . 13 . 1 10 . 14 28 . . . . 12 AOE 55 | . . 1 . 2 4 6 . . . . 2 . . . . . . . . 3 . . 7 4 . . . . 9 17 . . . . . Classes Destroyed 22 | . 6 . . 1 3 2 . . 1 1 1 . . 1 . . . . . . . . 1 1 . . . . 2 2 . . . . . Worker 22 | . . . . . . . . . . . 2 . . . . . 3 . . . . . . 6 . . . . 9 1 . . . . 1 Builder 18 | . . . . . 2 . 1 . . . 1 . . . . . . . . . . . 2 3 . . . . 5 4 . . . . . Tunneler 7 | . . . . 3 . . . . 1 . . . . . . . . . . . . . . . . . . . 3 . . . . . . Hauler 15 | . 2 . . . 2 . 3 . 1 . 3 . . . 2 . 1 . . . . . . . . . . . 1 . . . . . . Recycler 17 | . 2 . . . 1 . . . 1 . . . . . 1 . 1 . . . . . . 2 . . . . 4 3 . . 1 . 1 Mechanic 1 | . . . . . . . . . . . . . . . . . . . . . . . . . . . . . . 1 . . . . . Operator 2 | . 1 . . . . . 1 . . . . . . . . . . . . . . . . . . . . . . . . . . . . Watcher 8 | . 1 . . . . . 1 . 1 . . . 1 . . . . . . . . . . 2 . . 2 . . . . . . . . Swarmer 50 | . 6 . . 3 . . 4 . . 2 3 . . 5 2 2 . . . 4 1 . 3 4 . . 5 . . 5 . . . . 1 Saboteur 5 | . . . . . . . . . . . . . . . . . . . . . . . . 1 . . 2 . . 2 . . . . . Grunt 163 | . 7 2 . . 5 11 14 8 5 12 7 5 . 8 1 4 10 . . . . . . 16 . 1 11 . 12 24 . . . . . Brawler 12 | . . . . . . 1 . . . . 2 1 . 1 . . . . . . . . . . . . 4 . . 3 . . . . . Duelist 21 | . . . . . . 1 1 1 . 1 . 1 . 1 . 1 1 . . . . . . 1 . . 4 . 2 6 . . . . . Protector 1 | . . . . . . . . . . . . . . . . . . . . . . . . . . . . . 1 . . . . . . Researcher 2 | . . . . . . . . . . . . . . . . . . . . . . . . . . . . . . 2 . . . . . Sentry 34 | . . . . . 3 . 2 1 2 1 4 4 . . 1 . . . . 2 . . . 1 . 1 4 . 5 3 . . . . . Specialist 7 | . . . . . . . . . . 1 . . . . . . . . . . . . 2 . . . 2 . 2 . . . . . . Hunter 31 | . . . . . 2 . 1 . 2 1 2 1 . 1 . . . . . . . . 3 2 . . . . 10 6 . . . . . Programmer 40 | . . . . . . . . . 4 . 5 1 . . 4 . 4 . 2 . . . . 5 . . 3 . 7 5 . . . . . Heavy 1 | . . . . . . . . . . . . . . . . . . . . . . . . . . . . . 1 . . . . . . Q-Series 1 | . . . . . . . . . . . . . . . . . . . . . . . . . . . . . . 1 . . . . . Behemoth 2 | . . . . . . . . . . . . . . 1 . . . . . . . . . . . . . . 1 . . . . . . Enhanced Grunt 1 | . . . . . . . . . . . . . . . . . . . . . . . 1 . . . . . . . . . . . . Enhanced Q-Series 11 | . . . . . . . . . . . . . . . . . . . . . . . . . . . . . . . . . . . 11 Lightning 1 | . . . . . . . . . . . . . . . . . . . . . . . 1 . . . . . . . . . . . . Surgeon 2 | . . . . . . . . . . . . . . . . . . . . . . . 2 . . . . . . . . . . . . Best Kill Streak 12 | . 3 2 . 3 3 6 4 6 4 3 3 6 1 3 3 2 3 . 1 4 1 . 5 8 . 1 6 . 12 10 . . 1 . 5 Combat Bots Only 7 | . 3 2 . 3 2 6 4 6 3 3 3 6 . 3 3 2 3 . 1 4 1 . 5 6 . 1 6 . 6 7 . . . . 5 Max Kills in Single Turn 5 | . 2 1 . 2 2 2 1 1 1 1 2 1 1 2 1 1 2 . 1 3 1 . 2 5 . 1 3 . 4 4 . . 1 . 1 Gunslinging 1 | . . . . . . . . . . . . . . . . . . . . . . . . . . . 1 . . . . . . . . Exploded 3 | . . 1 . 2 1 2 . . . . 2 . . . . . . . . 3 . . 2 3 . . . . 3 3 . . . . . Melee 1 | . . . . . . . . . . . . . . . . . . . . . . . . . . . 1 . . 1 . . . . . Uniques/NPCs Destroyed 1 | . . . . . . . . . . . . . . . . . . . . . . . . . . . . . . . . . . . 1 MAIN.C Shell (-1/Command) Combat | -11 -10 -10 -10 -9 -8 -8 -8 -8 -7 -7 -7 -7 -6 -6 -6 -6 -5 -5 -5 -5 -5 -5 -5 -4 -4 -4 -4 -4 -3 -3 -3 -2 -2 -1 -1 -------- Run | Scr Mat Min Exi Min Mat Gar Mat Gar Fac Gar Fac Gar Fac Gar Fac Gar Fac Was Fac Ext Cet Arc Hub Fac Was Fac Arm Lab Res Qua Sec Res Tes Acc Com Damage Taken 37792 | . 416 164 . 97 264 819 506 489 664 562 951 701 . 511 334 222 1235 21 192 139 439 . 3801 4430 . 194 4088 . 5782 5364 230 511 184 221 4261 Core 4065 | . 62 . . 17 9 90 31 75 27 32 80 39 . 69 47 115 93 . . 12 16 . 221 745 . 51 326 . 328 746 23 52 91 25 643 Absorbed by Shields 4403 | . . . . . 98 140 105 . . 88 . 24 . 63 . . 29 . . 92 16 . 61 . . . . . 677 . . . . . 3010 Reduced by Siege Mode 1521 | . . . . . . . . . . . . . . . . . . . . . 19 . 210 105 . . 350 . 825 12 . . . . . Redirected to Core 407 | . . . . . . . . . . . . . . . . . . . . . . . . . . . . . . 407 . . . . . Redirected to Shielding 109 | . . . . . . . . . . . . . . . . . . . . . . . . 46 . . . . . . . . . . 63 Regen/Repaired (Parts) 2215 | . 105 . . . 34 . . . 1140 . 159 . . . . . . . 150 . . . . . . . . . 568 . . . . . 59 Core Remaining (%) 60 | 100 . . . 68 . . . 62 . . . 74 . . . 72 . . . . . . 65 . . . . 2 . . 15 . 90 . 58 Volleys Fired 1434 | . 53 3 . 2 26 31 76 26 46 48 65 38 3 53 35 20 65 10 19 25 10 . 27 85 22 11 102 10 124 103 7 7 27 13 242 Largest 3 | . 2 2 . 2 3 3 3 3 3 3 3 3 3 3 3 3 3 1 3 3 3 . 3 3 1 3 3 1 3 2 1 1 1 1 1 Hottest 278 | . 40 90 . 90 140 140 109 75 85 80 90 140 80 140 90 205 85 30 205 90 93 . 105 255 20 189 226 120 278 266 105 105 120 120 130 Shots Fired 2903 | . 106 6 . 4 77 50 178 76 133 136 188 105 9 141 90 54 155 11 40 54 28 . 63 168 24 21 266 11 238 181 7 7 27 13 236 Gun 1602 | . 106 6 . 4 77 46 178 76 120 88 123 66 6 92 25 17 47 . 10 15 27 . 56 69 2 5 191 . 119 31 . . . . . Cannon 1207 | . . . . . . . . . 13 47 63 34 3 44 64 36 103 2 28 38 1 . . 88 . 12 75 11 114 141 7 7 27 13 236 Launcher 29 | . . . . . . 4 . . . . . . . . . . . . . 1 . . 7 4 . . . . 5 8 . . . . . Special 65 | . . . . . . . . . . 1 2 5 . 5 1 1 5 9 2 . . . . 7 22 4 . . . 1 . . . . . Kinetic 1687 | . 106 . . . . . 148 76 120 88 123 66 6 92 25 17 47 . 10 15 27 . 56 21 . 13 242 1 149 92 . . . . 147 Thermal 1014 | . . . . . . 12 30 . 13 47 63 34 3 44 64 36 103 2 28 38 1 . . 136 24 4 24 10 75 80 7 7 27 13 89 Explosive 29 | . . . . . . 4 . . . . . . . . . . . . . 1 . . 7 4 . . . . 5 8 . . . . . Electromagnetic 130 | . . 6 . 4 77 34 . . . . . . . . . . . . . . . . . . . . . . 9 . . . . . . Robot Hit Streak 41 | . 19 3 . 1 7 7 7 14 18 19 32 13 10 23 16 7 12 12 19 11 6 . 20 20 12 14 30 . 28 16 . 15 31 32 41 Robot Miss Streak 7 | . 4 2 . . 5 2 3 2 3 3 3 2 2 3 1 3 4 . 1 4 7 . 4 2 2 1 3 . 4 3 . . . . 2 Penetration Max 3 | . . . . . . . . . . . . . . . . . . . . . 1 . 1 1 . . 3 . 2 . . . . . . Secondary Targets 15 | . . . . . . 1 3 3 1 . . . . . . . . . . . . . . . . . 5 . 2 . . . . . . Max Gunslinging Chain 1 | . . . . . . 1 1 1 1 . . . . . . . . . . . . . . . . . 1 . 1 . . . . . . Autonomous 31 | . . . . . . . . . . . . . . . . . . . . . . . . . . . . . . 31 . . . . . Shots Hit Robots 1917 | . 68 3 4 1 41 37 102 52 93 91 117 63 5 96 65 40 92 10 22 33 13 . 35 120 21 15 179 . 180 131 . 1 16 1 170 Core Hits 980 | . 29 3 . 6 24 33 51 21 36 34 47 28 1 40 19 12 33 . 5 17 4 . 86 72 7 4 88 . 118 104 . 1 2 . 55 Critical Kills 38 | . . . . . . . 1 1 . . . . . . 1 . 1 . . . . . 1 2 . . 23 . 3 4 . . 1 . . Critical Parts Destroyed 43 | . . . . . . . 2 1 . . . 1 . . . . . . . . 2 . 4 . . . 30 . 3 . . . . . . Critical Strikes 111 | . . . . . 1 . 4 2 . . . 1 . . 1 . 1 . . . 3 . 5 5 . . 61 . 9 6 . . 1 . 11 Burn 4 | . . . . . . . 1 . . . . . . . . . . . . . . . . 3 . . . . . . . . . . . Meltdown 9 | . . . . . . . . . . . . . . . 1 . 1 . . . . . . 1 . . . . 1 4 . . 1 . . Destroy 80 | . . . . . . . 3 2 . . . 1 . . . . . . . . 3 . 5 1 . . 59 . 6 . . . . . . Blast 17 | . . . . . . . . . . . . . . . . . . . . . . . . . . . 2 . 2 2 . . . . 11 Corrupt 1 | . . . . . 1 . . . . . . . . . . . . . . . . . . . . . . . . . . . . . . Melee Attacks 21 | . . . 4 . . 1 . . . 1 . . . . . 15 . . . . . . . . . . . . . . . . . . . Impact . | . . . . . . . . . . . . . . . . . . . . . . . . . . . . . . . . . . . . Slashing . | . . . . . . . . . . . . . . . . . . . . . . . . . . . . . . . . . . . . Piercing . | . . . . . . . . . . . . . . . . . . . . . . . . . . . . . . . . . . . . Sneak Attacks 20 | . . . 4 . . 1 . . . . . . . . . 15 . . . . . . . . . . . . . . . . . . . Combat Hostiles 1 | . . . . . . 1 . . . . . . . . . . . . . . . . . . . . . . . . . . . . . Follow-up Attacks . | . . . . . . . . . . . . . . . . . . . . . . . . . . . . . . . . . . . . Damage Inflicted 69051 | 3 954 133 . 200 1070 1363 1877 897 1804 1923 2845 1451 118 2097 1695 727 2494 27 538 1154 451 . 2972 5579 375 328 3261 . 10884 10855 . 34 577 35 10330 Guns 19884 | . 935 49 . 13 666 642 1843 897 1555 994 1349 695 40 1033 300 132 542 . 106 174 451 . 886 1555 18 93 1317 . 2878 721 . . . . . Cannons 34812 | . . . . . . . . . 231 921 1251 756 78 1046 1395 595 1876 27 407 695 . . . 2224 . 235 1943 . 4438 5724 . 34 577 35 10324 Explosions 13417 | . . 84 . 122 404 721 . . . . 144 . . . . . . . . 280 . . 2074 1715 . . . . 3463 4410 . . . . . Melee . | . . . . . . . . . . . . . . . . . . . . . . . . . . . . . . . . . . . . Ramming 581 | 3 19 . . 65 . . 34 . 18 8 101 . . 18 . . 76 . 25 5 . . 12 85 . . 1 . 105 . . . . . 6 Kinetic 27154 | . 935 . . . . . 1419 897 1555 994 1349 695 40 1033 300 132 542 . 106 174 451 . 886 489 . 263 2613 . 3592 2356 . . . . 6333 Thermal 32752 | . . 84 . 122 404 494 424 . 231 921 1306 756 78 1046 1395 595 1876 27 407 695 . . . 3861 375 65 647 . 5301 7005 . 34 577 35 3991 Explosive 6651 | . . . . . . 407 . . . . . . . . . . . . . 280 . . 1708 1140 . . . . 1622 1494 . . . . . Electromagnetic 1913 | . . 49 . 13 666 462 . . . . 89 . . . . . . . . . . . 366 4 . . . . 264 . . . . . . Impact . | . . . . . . . . . . . . . . . . . . . . . . . . . . . . . . . . . . . . Slashing . | . . . . . . . . . . . . . . . . . . . . . . . . . . . . . . . . . . . . Piercing . | . . . . . . . . . . . . . . . . . . . . . . . . . . . . . . . . . . . . Highest Corruption 33 | . . . . . 2 6 6 6 2 2 7 8 . . . . 5 5 7 7 7 7 23 7 7 7 32 32 10 22 22 . . . 33 Average Corruption 7 | . . . . . 2 3 6 6 1 2 4 7 . . . . 3 5 5 7 7 7 7 5 7 7 14 32 5 15 22 . . . 22 Corruption Purged 1 | . . . . . . . . . . . . . . . . . . . . . . . . . . . . . . . . . . . 1 Corruption Blocked . | . . . . . . . . . . . . . . . . . . . . . . . . . . . . . . . . . . . . Effects 730 | . . . . . 3 21 64 24 6 18 60 39 . . . . 28 29 28 49 12 2 24 32 18 21 65 15 40 83 4 . . . 45 Message Errors 154 | . . . . . . 7 10 5 1 4 13 13 . . . . 9 9 4 8 2 1 6 5 6 3 12 4 4 16 . . . . 12 Matter Fused 187 | . . . . . . 6 22 6 2 4 17 8 . . . . 5 10 5 20 4 . 7 8 5 5 15 5 9 19 1 . . . 4 Heat Flow Errors 81 | . . . . . 2 . 6 1 1 6 4 3 . . . . 3 3 9 4 2 . 3 4 . 2 9 1 9 5 1 . . . 3 Energy Discharges 92 | . . . . . . 4 6 7 2 1 9 6 . . . . 3 3 1 10 . . 2 4 2 2 5 3 6 12 . . . . 4 Parts Rejected 12 | . . . . . . . 1 . . . . . . . . . 1 1 . . . . 1 1 . . . . 2 4 . . . . 1 Data Loss (minor) 95 | . . . . . 1 3 13 2 . 1 7 5 . . . . 5 2 5 4 2 1 2 7 2 6 8 . 4 7 1 . . . 7 Data Loss (major) 23 | . . . . . . . 2 1 . 2 2 1 . . . . 1 . 1 1 1 . 1 . 1 . 3 . . 6 . . . . . Misfires 26 | . . . . . . 1 1 1 . . 5 2 . . . . . 1 2 . . . . . 2 2 5 1 . 1 . . . . 2 Alerts 13 | . . . . . . . 1 . . . 1 . . . . . 1 . 1 1 1 . . . . 1 . 1 1 3 . . . . 1 Misdirections 5 | . . . . . . . . . . . . . . . . . . . . . . . . . . . 1 . . . 1 . . . 3 Weapon Failures 42 | . . . . . . . 2 1 . . 2 1 . . . . . . . 1 . . 2 3 . . 7 . 5 10 . . . . 8 Overload Shots 49 | . . . . . . . . . . . 1 1 . 3 2 4 . . 8 9 1 . . 15 . . . . 1 . . . . 2 2 Effects 2 | . . . . . . . . . . . . . . . 1 . . . 1 . . . . . . . . . . . . . . . . Energy Bleed 1 | . . . . . . . . . . . . . . . 1 . . . . . . . . . . . . . . . . . . . . Short Circuit 1 | . . . . . . . . . . . . . . . . . . . 1 . . . . . . . . . . . . . . . . Overflow Damage 2143 | . . . . 22 3 . . . . 5 9 19 14 . 40 16 25 . . 42 . . 15 198 . . 4 . 509 1057 . . 8 . 157 Projectiles 1129 | . . . . . . . . . . 5 9 19 14 . 40 16 23 . . 29 . . . 48 . . 4 . 214 543 . . 8 . 157 Explosions 1012 | . . . . 22 3 . . . . . . . . . . . . . . 13 . . 15 150 . . . . 295 514 . . . . . Melee 2 | . . . . . . . . . . . . . . . . . 2 . . . . . . . . . . . . . . . . . . Knockbacks 70 | . . . . . . . . . . . . . . . . . 2 . . . . . . . . 2 12 . 8 13 . . . . 33 Impact 3 | . . . . . . . . . . . . . . . . . 2 . . . . . . . . . . . 1 . . . . . . Kinetic 63 | . . . . . . . . . . . . . . . . . . . . . . . . . . 1 11 . 7 13 . . . . 31 Secondary 4 | . . . . . . . . . . . . . . . . . . . . . . . . . . 1 1 . . . . . . . 2 Self-Inflicted Damage 763 | . . . . 42 . 102 . . . . . . . . . . . . . . . . 198 43 . 16 . . 62 300 . . . . . Shots 30 | . . . . 2 . 5 . . . . . . . . . . . . . . . . 11 2 . 1 . . 2 7 . . . . . Rammed 49 | 1 4 . . 6 1 . 6 . 3 1 4 . . 2 . . 5 . 3 3 . . 1 2 . . 1 . 6 . . . . . . Targets Rammed 59 | 1 4 . . 8 1 . 6 . 3 1 7 . . 2 . . 5 . 3 3 . . 1 5 . . 1 . 7 . . . . . 1 Kicked 3 | . . . . . . . . . . . . . . . . . . . . . . . . 2 . . . . . . . . . . 1 Crushed 7 | . . . . 2 . . . . . . 3 . . . . . . . . . . . . 1 . . . . 1 . . . . . . Highest Temperature 585 | . 10 60 . 84 363 558 255 196 432 346 222 181 . 106 167 316 188 253 340 148 293 . 135 585 22 186 430 248 468 243 135 41 435 . 447 Average Temperature 96 | . 10 26 . 50 115 199 44 53 123 118 75 60 . 41 57 71 45 117 95 48 120 . 55 108 13 58 96 80 152 75 34 21 153 . 74 Received Heat Transfer 6858 | . 165 . . 6 61 393 138 270 96 228 96 256 . 120 69 33 424 . . 30 27 . 435 571 . 54 668 . 1361 914 9 27 27 18 362 Effects 29 | . . . . . 4 11 . . 2 3 . . . . . . . . . . . . . 2 . . 2 . 4 . . . . . 1 Shutdowns 2 | . . . . . . 1 . . . . . . . . . . . . . . . . . 1 . . . . . . . . . . . Energy Bleed 5 | . . . . . 3 1 . . . . . . . . . . . . . . . . . 1 . . . . . . . . . . . Interference 14 | . . . . . 1 2 . . 2 3 . . . . . . . . . . . . . . . . 2 . 4 . . . . . . Short Circuit 3 | . . . . . . 2 . . . . . . . . . . . . . . . . . . . . . . . . . . . . 1 Damage (minor) 2 | . . . . . . 2 . . . . . . . . . . . . . . . . . . . . . . . . . . . . . Damage (major) 3 | . . . . . . 3 . . . . . . . . . . . . . . . . . . . . . . . . . . . . . Siege Activations 15 | . . . . . . . . . . . . . . . . . . . . . 1 . 2 2 . . 3 . 4 3 . . . . . Total Turns 459 | . . . . . . . . . . . . . . . . . . . . . 11 . 46 46 . . 97 . 158 101 . . . . . Longest Duration 93 | . . . . . . . . . . . . . . . . . . . . . 11 . 23 28 . . 47 . 68 93 . . . . . Robots Corrupted 2 | . . . . . . . . . . . . . . . . . . . . . . . . . . . . . 2 . . . . . . Combat Hostiles 2 | . . . . . . . . . . . . . . . . . . . . . . . . . . . . . 2 . . . . . . Parts Fried 8 | . . . . . 1 1 . . . . . . . . . . 1 . . 1 . . . . . . . . 3 . . . . . 1 Impact Corruptions 1 | . . . . . . . . . . . . . . . . . 1 . . . . . . . . . . . . . . . . . . Robots Melted 10 | . . . . . . . . . . . . . . . 1 . 1 . . . . . . 2 . . . . 1 4 . . 1 . . Combat Hostiles 7 | . . . . . . . . . . . . . . . . . . . . . . . . 2 . . . . 1 3 . . 1 . . Parts Melted 63 | . . . . . 1 . 2 . 1 2 2 2 . 3 2 2 3 . . 2 . . . 14 . . . . 15 9 . . 3 . . Heat Transferred 32809 | . . 100 . 150 400 683 851 . 296 1258 1678 936 111 1334 1813 766 2442 37 494 901 . . . 5498 851 150 555 . 4366 5769 . 37 592 37 704 Parts Sabotaged 5 | . . . . . . . . . . . . . . . . . . . . . . . . 1 . . 3 . . 1 . . . . . Parts Stolen . | . . . . . . . . . . . . . . . . . . . . . . . . . . . . . . . . . . . . Parts Stripped . | . . . . . . . . . . . . . . . . . . . . . . . . . . . . . . . . . . . . Power Chain Reactions 11 | . . 1 . . 5 3 . . . . 1 . . . . . . . . . . . 1 . . . . . . . . . . . . Missiles Intercepted . | . . . . . . . . . . . . . . . . . . . . . . . . . . . . . . . . . . . . Alert | -11 -10 -10 -10 -9 -8 -8 -8 -8 -7 -7 -7 -7 -6 -6 -6 -6 -5 -5 -5 -5 -5 -5 -5 -4 -4 -4 -4 -4 -3 -3 -3 -2 -2 -1 -1 ------- Run | Scr Mat Min Exi Min Mat Gar Mat Gar Fac Gar Fac Gar Fac Gar Fac Gar Fac Was Fac Ext Cet Arc Hub Fac Was Fac Arm Lab Res Qua Sec Res Tes Acc Com Peak Influence 2311 | . 190 102 . 273 180 472 456 476 356 614 472 771 434 943 494 509 558 123 491 572 617 442 1077 876 262 724 1059 . 1743 2311 1315 750 539 653 618 Initial 1266 | . . 22 . . 31 53 230 141 249 130 322 330 404 303 494 275 266 123 . 205 244 158 154 494 262 43 354 . . 980 1266 639 416 214 411 Average 416 | . 81 99 . 111 92 295 171 314 201 430 331 582 412 704 335 445 355 62 339 375 459 264 672 539 184 269 739 . 383 1641 1242 657 380 523 435 Maximum Alert Level 5 | . . . . 1 . 2 2 2 1 2 2 3 2 3 2 2 2 . 2 2 2 2 3 3 1 3 3 . 5 5 4 3 2 2 2 Low Security (%) 30 | 100 100 100 . 96 100 23 64 21 51 8 . . . . 6 . . 100 5 . . 53 17 . 38 51 . . 53 . . . . . 68 Level 1 29 | . . . . 3 . 68 24 28 48 25 83 10 . 10 74 30 77 . 51 68 49 20 6 8 61 28 13 . 19 . . . 53 23 . Level 2 25 | . . . . . . 7 11 49 . 65 16 63 100 39 18 69 22 . 43 31 50 26 23 74 . 5 29 . 10 . . 87 46 76 31 Level 3 9 | . . . . . . . . . . . . 25 . 49 . . . . . . . . 53 17 . 14 56 . 4 18 11 12 . . . Level 4 1 | . . . . . . . . . . . . . . . . . . . . . . . . . . . . . 7 26 88 . . . . Level 5 2 | . . . . . . . . . . . . . . . . . . . . . . . . . . . . . 4 54 . . . . . High Security . | . . . . . . . . . . . . . . . . . . . . . . . . . . . . . . . . . . . . Max Security . | . . . . . . . . . . . . . . . . . . . . . . . . . . . . . . . . . . . . Squads Dispatched 120 | . 4 . . . 1 . 6 . 6 . 13 . 1 . 7 . 6 . 6 2 . . 6 9 . 1 7 . 18 15 4 1 1 5 1 Investigation 27 | . 3 . . . . . 2 . 3 . 5 . . . . . 3 . 2 . . . 1 1 . . 1 . 6 . . . . . . Extermination 27 | . . . . . . . . . 3 . 6 . 1 . 4 . 2 . . . . . . 2 . . 2 . 4 3 . . . . . Reinforcement 40 | . 1 . . . . . 2 . . . 2 . . . 3 . 1 . 2 2 . . 3 3 . 1 1 . 6 4 4 1 1 2 1 Assault 19 | . . . . . . . . . . . . . . . . . . . 1 . . . 2 3 . . 3 . 1 7 . . . 2 . Garrison 7 | . . . . . 1 . 2 . . . . . . . . . . . 1 . . . . . . . . . 1 1 . . . 1 . Intercept . | . . . . . . . . . . . . . . . . . . . . . . . . . . . . . . . . . . . . Searches Triggered . | . . . . . . . . . . . . . . . . . . . . . . . . . . . . . . . . . . . . Construction Impeded 8 | . . . . . . . . . . . . . . . . . . . 2 . . . . 1 . . . . 3 2 . . . . . Haulers Reinforced 9 | . . . . . . . . . . . 1 . . . 2 . 1 . . . . . . 1 . 1 . . 1 . . 1 1 . . Active Scanning Responses 5 | . . . . . . . . . . . . . . . . . . . . . . . . . . . . . 5 . . . . . . Cargo Convoy Interrupts . | . . . . . . . . . . . . . . . . . . . . . . . . . . . . . . . . . . . . Stealth | -11 -10 -10 -10 -9 -8 -8 -8 -8 -7 -7 -7 -7 -6 -6 -6 -6 -5 -5 -5 -5 -5 -5 -5 -4 -4 -4 -4 -4 -3 -3 -3 -2 -2 -1 -1 --------- Run | Scr Mat Min Exi Min Mat Gar Mat Gar Fac Gar Fac Gar Fac Gar Fac Gar Fac Was Fac Ext Cet Arc Hub Fac Was Fac Arm Lab Res Qua Sec Res Tes Acc Com Distress Signals 43 | . 1 . . . 2 . 3 . . . 2 . . . 1 . 1 . 1 4 2 . 2 2 . 1 3 . 1 1 . 2 1 1 12 Communications Jammed 46 | . . . . . . . . . . . 29 . . . 15 . 1 . . . . . 1 . . . . . . . . . . . . Distress Signals 45 | . . . . . . . . . . . 29 . . . 14 . 1 . . . . . 1 . . . . . . . . . . . . Times Spotted 813 | . 29 6 . 9 19 14 31 9 16 22 29 12 1 24 12 12 28 6 9 27 15 8 41 60 . 14 58 . 61 84 22 23 21 18 73 Peak Tracking Total 16 | . 3 6 . 3 3 6 4 5 4 3 4 6 1 3 5 3 7 2 2 5 5 8 16 14 . 8 8 . 11 7 12 7 6 4 7 Tactical Retreats 26 | . 3 1 . . 2 . 2 . . . 2 . . . 1 . 2 1 1 . 1 . . . . . 2 . 5 2 1 . . . . Traps | -11 -10 -10 -10 -9 -8 -8 -8 -8 -7 -7 -7 -7 -6 -6 -6 -6 -5 -5 -5 -5 -5 -5 -5 -4 -4 -4 -4 -4 -3 -3 -3 -2 -2 -1 -1 ------- Run | Scr Mat Min Exi Min Mat Gar Mat Gar Fac Gar Fac Gar Fac Gar Fac Gar Fac Was Fac Ext Cet Arc Hub Fac Was Fac Arm Lab Res Qua Sec Res Tes Acc Com Traps Triggered 65 | . 1 . . . 1 4 2 6 . 8 7 5 . 8 1 8 2 . . . . . . 3 . . 2 . 3 2 . . . 2 . Indirectly . | . . . . . . . . . . . . . . . . . . . . . . . . . . . . . . . . . . . . Trap Hack Attempts . | . . . . . . . . . . . . . . . . . . . . . . . . . . . . . . . . . . . . Triggered . | . . . . . . . . . . . . . . . . . . . . . . . . . . . . . . . . . . . . Disarmed . | . . . . . . . . . . . . . . . . . . . . . . . . . . . . . . . . . . . . Reprogrammed . | . . . . . . . . . . . . . . . . . . . . . . . . . . . . . . . . . . . . Reused . | . . . . . . . . . . . . . . . . . . . . . . . . . . . . . . . . . . . . Traps Extracted . | . . . . . . . . . . . . . . . . . . . . . . . . . . . . . . . . . . . . Installed . | . . . . . . . . . . . . . . . . . . . . . . . . . . . . . . . . . . . . Triggered . | . . . . . . . . . . . . . . . . . . . . . . . . . . . . . . . . . . . . Machines | -11 -10 -10 -10 -9 -8 -8 -8 -8 -7 -7 -7 -7 -6 -6 -6 -6 -5 -5 -5 -5 -5 -5 -5 -4 -4 -4 -4 -4 -3 -3 -3 -2 -2 -1 -1 ---------- Run | Scr Mat Min Exi Min Mat Gar Mat Gar Fac Gar Fac Gar Fac Gar Fac Gar Fac Was Fac Ext Cet Arc Hub Fac Was Fac Arm Lab Res Qua Sec Res Tes Acc Com Machines Disabled 102 | . . 1 . 5 2 . . 2 1 2 2 3 . 4 5 1 2 . 2 8 4 1 9 7 . 7 10 3 7 4 3 . 2 2 3 Max in Single Turn 5 | . . 1 . 5 1 . . 1 1 1 1 1 . 1 1 1 1 . 1 1 1 . 5 4 . 4 1 1 3 1 1 . 1 1 1 Garrison Access 6 | . . . . . . . . . . . . . . . . . 1 . 1 . . . . . . 1 . . 1 . . . . 2 . Garrison Relay 11 | . . . . . . . . 2 . 2 . 3 . 4 . . . . . . . . . . . . . . . . . . . . . Network Hub 1 | . . . . . . . . . . . . . . . . . . . . . . . 1 . . . . . . . . . . . . Machines Sabotaged . | . . . . . . . . . . . . . . . . . . . . . . . . . . . . . . . . . . . . Garrisons Compromised . | . . . . . . . . . . . . . . . . . . . . . . . . . . . . . . . . . . . . Overloaded Fab Kills . | . . . . . . . . . . . . . . . . . . . . . . . . . . . . . . . . . . . . Hacking | -11 -10 -10 -10 -9 -8 -8 -8 -8 -7 -7 -7 -7 -6 -6 -6 -6 -5 -5 -5 -5 -5 -5 -5 -4 -4 -4 -4 -4 -3 -3 -3 -2 -2 -1 -1 --------- Run | Scr Mat Min Exi Min Mat Gar Mat Gar Fac Gar Fac Gar Fac Gar Fac Gar Fac Was Fac Ext Cet Arc Hub Fac Was Fac Arm Lab Res Qua Sec Res Tes Acc Com Machines Accessed 92 | . 10 . 2 . 6 . 5 . 7 . 12 . 1 . 5 . 4 . 4 10 1 . 1 3 . 3 4 . 2 1 3 1 5 1 1 Terminals 54 | . 7 . . . 3 . 3 . 2 . 6 . . . 3 . . . 2 10 1 . 1 2 . 2 2 . . 1 3 1 4 1 . Fabricators 8 | . . . . . . . . . 1 . 2 . . . . . 1 . 1 . . . . . . . 2 . . . . . 1 . . Repair Stations 14 | . 1 . . . 1 . . . 3 . 3 . . . . . 2 . 1 . . . . 1 . . . . 1 . . . . . 1 Recycling Units 4 | . 2 . . . . . 1 . . . . . . . . . . . . . . . . . . . . . 1 . . . . . . Scanalyzers 2 | . . . . . 1 . . . . . . . . . 1 . . . . . . . . . . . . . . . . . . . . Garrison Access 8 | . . . . . 1 . 1 . 1 . 1 . 1 . 1 . 1 . . . . . . . . 1 . . . . . . . . . Total Hacks 263 | . 29 . 2 . 13 . 12 . 22 . 36 . 1 . 10 . 9 . 11 18 3 . 6 15 . 11 16 . 4 1 6 6 28 1 3 Successful 114 | . 13 . 2 . 10 . 6 . 14 . 12 . 1 . 4 . 5 . 4 4 . . 1 4 . 6 9 . 2 . 2 4 8 1 2 Failed 149 | . 16 . . . 3 . 6 . 8 . 24 . . . 6 . 4 . 7 14 3 . 5 11 . 5 7 . 2 1 4 2 20 . 1 Catastrophic 33 | . 2 . . . 1 . 1 . 2 . 5 . . . 2 . 2 . 1 4 2 . 2 2 . 1 1 . . 1 1 . 3 . . Database Lockouts . | . . . . . . . . . . . . . . . . . . . . . . . . . . . . . . . . . . . . Manual 101 | . 21 . 1 . 6 . 9 . 2 . 14 . . . 2 . . . 4 1 1 . 6 7 . 6 11 . . . 2 . 8 . . Terminals 172 | . 22 . . . 7 . 8 . 5 . 20 . . . 7 . . . 5 18 3 . 6 10 . 10 10 . . 1 6 6 27 1 . Fabricators 21 | . . . . . . . . . 5 . 5 . . . . . 2 . 2 . . . . . . . 6 . . . . . 1 . . Repair Stations 47 | . 3 . . . 2 . . . 11 . 10 . . . . . 6 . 4 . . . . 5 . . . . 3 . . . . . 3 Recycling Units 7 | . 4 . . . . . 2 . . . . . . . . . . . . . . . . . . . . . 1 . . . . . . Scanalyzers 5 | . . . . . 3 . . . . . . . . . 2 . . . . . . . . . . . . . . . . . . . . Garrison Access 9 | . . . . . 1 . 2 . 1 . 1 . 1 . 1 . 1 . . . . . . . . 1 . . . . . . . . . Terminal Hacks 53 | . 9 . 2 . 2 . 3 . 2 . 4 . . . 2 . . . 2 4 . . 1 1 . 4 4 . . . 2 4 6 1 . Record 1 | . . . 1 . . . . . . . . . . . . . . . . . . . . . . . . . . . . . . . . Part Schematic 4 | . 3 . . . . . . . . . . . . . . . . . . . . . . . . . . . . . . . 1 . . Robot Analysis 5 | . 2 . . . 1 . 1 . . . . . . . . . . . . . . . . . . . . . . . . 1 . . . Prototype ID Bank 9 | . 2 . . . . . 1 . 1 . 1 . . . . . . . 1 1 . . . . . 1 . . . . . . 1 . . Open Door 4 | . . . . . . . . . . . . . . . . . . . . 3 . . . . . . . . . . . . . 1 . Branch Access Points 5 | . . . . . . . . . . . . . . . . . . . 1 . . . . 1 . 1 . . . . . 1 1 . . Terminal Index 2 | . . . . . . . . . 1 . . . . . . . . . . . . . . . . . . . . . . 1 . . . Unreport Threat 13 | . 1 . . . 1 . 1 . . . . . . . 1 . . . . . . . 1 . . 1 3 . . . 2 . 2 . . Locate Traps 5 | . 1 . . . . . . . . . . . . . 1 . . . . . . . . . . . 1 . . . . 1 1 . . Maintenance Status 1 | . . . . . . . . . . . 1 . . . . . . . . . . . . . . . . . . . . . . . . Patrol Status 1 | . . . . . . . . . . . 1 . . . . . . . . . . . . . . . . . . . . . . . . Hauler Manifests 2 | . . . . . . . . . . . 1 . . . . . . . . . . . . . . 1 . . . . . . . . . EX-Prototype ID Bank 1 | . . . 1 . . . . . . . . . . . . . . . . . . . . . . . . . . . . . . . . Fabricator Hacks 8 | . . . . . . . . . 2 . 1 . . . . . 2 . . . . . . . . . 3 . . . . . . . . Network Status 2 | . . . . . . . . . 1 . 1 . . . . . . . . . . . . . . . . . . . . . . . . Load Schematic 3 | . . . . . . . . . . . . . . . . . 1 . . . . . . . . . 2 . . . . . . . . Build 3 | . . . . . . . . . 1 . . . . . . . 1 . . . . . . . . . 1 . . . . . . . . Repair Station Hacks 28 | . 2 . . . 2 . . . 9 . 5 . . . . . 2 . 2 . . . . 2 . . . . 2 . . . . . 2 Scan Component 17 | . 1 . . . 1 . . . 5 . 3 . . . . . 2 . 1 . . . . 2 . . . . 1 . . . . . 1 Repair 11 | . 1 . . . 1 . . . 4 . 2 . . . . . . . 1 . . . . . . . . . 1 . . . . . 1 Recycling Unit Hacks . | . . . . . . . . . . . . . . . . . . . . . . . . . . . . . . . . . . . . Scanalyzer 3 | . . . . . 3 . . . . . . . . . . . . . . . . . . . . . . . . . . . . . . Insert Component 2 | . . . . . 2 . . . . . . . . . . . . . . . . . . . . . . . . . . . . . . Analyze 1 | . . . . . 1 . . . . . . . . . . . . . . . . . . . . . . . . . . . . . . Garrison Access Hacks 8 | . . . . . 1 . 1 . 1 . 1 . 1 . 1 . 1 . . . . . . . . 1 . . . . . . . . . Unlock Access 6 | . . . . . 1 . 1 . 1 . 1 . 1 . 1 . . . . . . . . . . . . . . . . . . . . Seal Access 2 | . . . . . . . . . . . . . . . . . 1 . . . . . . . . 1 . . . . . . . . . Unauthorized Hacks 14 | . 2 . . . 2 . 2 . . . 1 . . . 1 . . . . . . . . 1 . 1 2 . . . . . 2 . . Terminals 9 | . 1 . . . 2 . 1 . . . 1 . . . 1 . . . . . . . . 1 . 1 . . . . . . 1 . . Botnet 9 | . 1 . . . 2 . 1 . . . 1 . . . 1 . . . . . . . . 1 . 1 . . . . . . 1 . . Fabricators 3 | . . . . . . . . . . . . . . . . . . . . . . . . . . . 2 . . . . . 1 . . Fabnet 3 | . . . . . . . . . . . . . . . . . . . . . . . . . . . 2 . . . . . 1 . . Repair Stations . | . . . . . . . . . . . . . . . . . . . . . . . . . . . . . . . . . . . . Recycling Units 2 | . 1 . . . . . 1 . . . . . . . . . . . . . . . . . . . . . . . . . . . . Tunnel 2 | . 1 . . . . . 1 . . . . . . . . . . . . . . . . . . . . . . . . . . . . Scanalyzers . | . . . . . . . . . . . . . . . . . . . . . . . . . . . . . . . . . . . . Garrison Access . | . . . . . . . . . . . . . . . . . . . . . . . . . . . . . . . . . . . . Data Cores Recovered . | . . . . . . . . . . . . . . . . . . . . . . . . . . . . . . . . . . . . Used . | . . . . . . . . . . . . . . . . . . . . . . . . . . . . . . . . . . . . Hacking Detections 75 | . 9 . . . 5 . 4 . 5 . 12 . . . 4 . 3 . 4 8 1 . 1 3 . 2 4 . 2 1 2 1 4 . . Full Trace Events 18 | . 4 . . . . . . . 3 . 4 . . . . . 3 . 2 . . . . 1 . . 1 . . . . . . . . Feedback Events 4 | . . . . . . . . . . . 2 . . . . . 1 . . . . . . 1 . . . . . . . . . . . Corruption 4 | . . . . . . . . . . . 2 . . . . . 1 . . . . . . 1 . . . . . . . . . . . Feedback Blocked . | . . . . . . . . . . . . . . . . . . . . . . . . . . . . . . . . . . . . Robot Schematics Acquired . | . . . . . . . . . . . . . . . . . . . . . . . . . . . . . . . . . . . . Robots Built . | . . . . . . . . . . . . . . . . . . . . . . . . . . . . . . . . . . . . Authchips . | . . . . . . . . . . . . . . . . . . . . . . . . . . . . . . . . . . . . Time . | . . . . . . . . . . . . . . . . . . . . . . . . . . . . . . . . . . . . Total Robot Build Rating . | . . . . . . . . . . . . . . . . . . . . . . . . . . . . . . . . . . . . Part Schematics Acquired 5 | . 3 . . . 1 . . . . . . . . . . . . . . . . . . . . . . . . . . . 1 . . Parts Built 3 | . . . . . . . . . 1 . . . . . . . 1 . . . . . . . . . 1 . . . . . . . . Authchips . | . . . . . . . . . . . . . . . . . . . . . . . . . . . . . . . . . . . . Time 287 | . . . . . . . . . 152 . . . . . . . 84 . . . . . . . . . 51 . . . . . . . . Total Part Build Rating 10 | . . . . . . . . . 5 . . . . . . . 4 . . . . . . . . . 1 . . . . . . . . Parts Repaired 11 | . 1 . . . 1 . . . 4 . 2 . . . . . . . 1 . . . . . . . . . 1 . . . . . 1 Time 463 | . 26 . . . 32 . . . 167 . 108 . . . . . . . 70 . . . . . . . . . 24 . . . . . 36 Parts Recycled . | . . . . . . . . . . . . . . . . . . . . . . . . . . . . . . . . . . . . Recycled Matter . | . . . . . . . . . . . . . . . . . . . . . . . . . . . . . . . . . . . . Retrieved Matter . | . . . . . . . . . . . . . . . . . . . . . . . . . . . . . . . . . . . . Retrieved Components . | . . . . . . . . . . . . . . . . . . . . . . . . . . . . . . . . . . . . Parts Scanalyzed 1 | . . . . . 1 . . . . . . . . . . . . . . . . . . . . . . . . . . . . . . Part Schematics Acquired 1 | . . . . . 1 . . . . . . . . . . . . . . . . . . . . . . . . . . . . . . Parts Damaged . | . . . . . . . . . . . . . . . . . . . . . . . . . . . . . . . . . . . . Bothacking | -11 -10 -10 -10 -9 -8 -8 -8 -8 -7 -7 -7 -7 -6 -6 -6 -6 -5 -5 -5 -5 -5 -5 -5 -4 -4 -4 -4 -4 -3 -3 -3 -2 -2 -1 -1 ------------ Run | Scr Mat Min Exi Min Mat Gar Mat Gar Fac Gar Fac Gar Fac Gar Fac Gar Fac Was Fac Ext Cet Arc Hub Fac Was Fac Arm Lab Res Qua Sec Res Tes Acc Com Used RIF Installer 6 | . . . . . . 1 . 1 . 1 . 1 . 1 . 1 . . . . . . . . . . . . . . . . . . . Robot Detection 1 | . . . . . . . . 1 . . . . . . . . . . . . . . . . . . . . . . . . . . . Autooverride 3 | . . . . . . . . . . 1 . 1 . 1 . . . . . . . . . . . . . . . . . . . . . Autoassimilate 1 | . . . . . . . . . . . . . . . . 1 . . . . . . . . . . . . . . . . . . . Robots Hacked 119 | . . . 4 . . . . . . 2 4 4 1 9 2 6 12 6 3 7 . 1 3 16 . 6 4 . 6 7 2 . . 2 12 Non-combat 12 | . . . 3 . . . . . . . . . . . 1 . . . 1 . . . . 3 . 2 . . . 1 . . . 1 . Combat 107 | . . . 1 . . . . . . 2 4 4 1 9 1 6 12 6 2 7 . 1 3 13 . 4 4 . 6 6 2 . . 1 12 Autooverrided 47 | . . . . . . . . . . . 2 3 1 6 1 5 6 . 2 7 . . 3 8 . 2 1 . . . . . . . . Autoassimilated 16 | . . . . . . . . . . . . . . . . . 4 . . . . 1 . 4 . 2 3 . . . . . . 1 1 Robot Hacks Applied 38 | . . . 4 . . . . . . 2 2 2 . 5 1 1 3 9 1 . . . . 5 . 2 . . . 1 . . . . . parse_system 4 | . . . 4 . . . . . . . . . . . . . . . . . . . . . . . . . . . . . . . . find_chute 1 | . . . . . . . . . . . . . . . . . . . . . . . . 1 . . . . . . . . . . . drop_inventory 6 | . . . . . . . . . . . . . . . . . . . 1 . . . . 2 . 2 . . . 1 . . . . . recall_reinforcements 2 | . . . . . . . . . . . . . . . 1 . . . . . . . . 1 . . . . . . . . . . . ignore_targets 8 | . . . . . . . . . . . . . . . . . . 8 . . . . . . . . . . . . . . . . . find_garrison 1 | . . . . . . . . . . . 1 . . . . . . . . . . . . . . . . . . . . . . . . reboot_propulsion 1 | . . . . . . . . . . . . . . 1 . . . . . . . . . . . . . . . . . . . . . link_complan 1 | . . . . . . . . . . . . . . 1 . . . . . . . . . . . . . . . . . . . . . broadcast_data 1 | . . . . . . . . . . . . . . . . . 1 . . . . . . . . . . . . . . . . . . disrupt_area 1 | . . . . . . . . . . . . . . . . . 1 . . . . . . . . . . . . . . . . . . overload_power 1 | . . . . . . . . . . . . . . . . . . 1 . . . . . . . . . . . . . . . . . overwrite_iff 2 | . . . . . . . . . . . 1 . . . . . 1 . . . . . . . . . . . . . . . . . . formatsys_high 9 | . . . . . . . . . . 2 . 2 . 3 . 1 . . . . . . . 1 . . . . . . . . . . . Relay Couplers Released 57 | . . . . . . . . 9 . 6 . 11 . 19 . . . . 6 . . . . . . . . . 3 . . . . 3 . Machine Destruction 54 | . . . . . . . . 9 . 6 . 11 . 19 . . . . 3 . . . . . . . . . 3 . . . . 3 . Programmers 3 | . . . . . . . . . . . . . . . . . . . 3 . . . . . . . . . . . . . . . . Attached 16 | . . . . . . . . 2 1 . 1 1 . 3 1 1 . 1 . . . . . 1 . . . . . 1 . . . 3 . Fabnet Peak Effective % 6 | . . . . . . . . . . . . . . . . . . . . . . . . . . . . . 6 6 6 2 2 3 3 Autooverrided 26 | . . . . . . . . . . . . . . . . . . . . . . . . . . . . . 6 6 2 . . 1 11 Robots Rewired 20 | . . . . . . 1 . . . . . . . . . 6 . . . 9 . . . . . . 4 . . . . . . . . Allies Hacked 4 | . . . . . . . . . . . . . . . . . . . . . . . . . . . 1 . 3 . . . . . . Hacks Repelled . | . . . . . . . . . . . . . . . . . . . . . . . . . . . . . . . . . . . . Allies | -11 -10 -10 -10 -9 -8 -8 -8 -8 -7 -7 -7 -7 -6 -6 -6 -6 -5 -5 -5 -5 -5 -5 -5 -4 -4 -4 -4 -4 -3 -3 -3 -2 -2 -1 -1 -------- Run | Scr Mat Min Exi Min Mat Gar Mat Gar Fac Gar Fac Gar Fac Gar Fac Gar Fac Was Fac Ext Cet Arc Hub Fac Was Fac Arm Lab Res Qua Sec Res Tes Acc Com Total Allies 184 | . . . . 3 . 1 . . . 2 3 4 1 7 1 12 11 21 2 30 5 1 3 13 20 4 8 . 10 6 2 . . 2 12 Largest Group 20 | . . . . 3 1 1 . . . 2 1 3 2 3 1 7 3 19 19 17 17 6 5 4 20 20 14 . 4 1 1 . . 2 8 Highest-Rated Group 778 | . . . . 77 31 10 . . . 32 16 48 45 105 29 133 87 684 684 629 778 368 339 210 693 693 536 . 205 58 30 . . 85 415 Highest-Rated Ally 159 | . . . . 31 31 10 . . . 16 16 16 29 47 29 41 49 50 50 159 144 96 96 58 50 50 58 . 82 58 30 . . 58 82 Total Orders 9 | . . . . . . . . . . . . 2 . 2 . 2 . . . . 3 . . . . . . . . . . . . . . STAY 5 | . . . . . . . . . . . . 1 . 1 . 1 . . . . 2 . . . . . . . . . . . . . . FOLLOW 4 | . . . . . . . . . . . . 1 . 1 . 1 . . . . 1 . . . . . . . . . . . . . . Ally Attacks 1322 | . . . . 11 26 . . . . 8 8 18 8 61 4 67 49 137 124 126 113 21 72 30 . 176 133 . 46 14 5 . . 4 61 Total Damage 33586 | . . . . 166 272 . . . . 79 92 264 112 971 74 854 922 4355 4201 3135 2493 889 2352 903 . 3699 4407 . 927 478 75 . . 142 1724 Kills 181 | . . . . 6 3 . . . . . . . 1 6 1 7 5 6 23 23 18 7 15 4 . 19 29 . 3 3 . . . . 2 Allies Corrupted 3 | . . . . . . . . . . . . 1 . . . . . . . . . . . . . . 1 . . . . . . . 1 Allies Melted 3 | . . . . . . . . . . . . . . . . . 1 . . . . . . . . . . . . . . . . . 2 Intel | -11 -10 -10 -10 -9 -8 -8 -8 -8 -7 -7 -7 -7 -6 -6 -6 -6 -5 -5 -5 -5 -5 -5 -5 -4 -4 -4 -4 -4 -3 -3 -3 -2 -2 -1 -1 ------- Run | Scr Mat Min Exi Min Mat Gar Mat Gar Fac Gar Fac Gar Fac Gar Fac Gar Fac Was Fac Ext Cet Arc Hub Fac Was Fac Arm Lab Res Qua Sec Res Tes Acc Com Robot Analysis Total 5 | . 2 . . . 1 . 1 . . . . . . . . . . . . . . . . . . . . . . . . 1 . . . Derelict Logs Recovered 1 | . . . . 1 . . . . . . . . . . . . . . . . . . . . . . . . . . . . . . . Drone Launches . | . . . . . . . . . . . . . . . . . . . . . . . . . . . . . . . . . . . . Drone Recoveries . | . . . . . . . . . . . . . . . . . . . . . . . . . . . . . . . . . . . . Exploration | -11 -10 -10 -10 -9 -8 -8 -8 -8 -7 -7 -7 -7 -6 -6 -6 -6 -5 -5 -5 -5 -5 -5 -5 -4 -4 -4 -4 -4 -3 -3 -3 -2 -2 -1 -1 ------------- Run | Scr Mat Min Exi Min Mat Gar Mat Gar Fac Gar Fac Gar Fac Gar Fac Gar Fac Was Fac Ext Cet Arc Hub Fac Was Fac Arm Lab Res Qua Sec Res Tes Acc Com Turns Passed 38990 | 102 1479 43 557 1160 2226 1009 2367 821 1657 1656 3013 1337 267 2875 1013 889 1597 1242 913 1631 511 73 668 1601 651 590 1543 324 1881 1635 92 83 265 162 1057 Spaces Moved 17349 | 59 734 22 338 695 713 355 751 237 518 628 1044 505 105 1074 346 331 560 481 335 615 191 44 275 739 351 320 647 153 865 673 262 242 739 565 837 Core 7 | 7 . . . . . . . . . . . . . . . . . . . . . . . . . . . . . . . . . . . Treads 14326 | 52 734 22 338 695 713 355 751 237 518 628 1044 505 105 1074 346 331 560 481 335 615 191 44 275 646 300 320 647 153 849 462 . . . . . Legs 642 | . . . . . . . . . . . . . . . . . . . . . . . . 93 51 . . . 16 79 . . . . 403 Wheels . | . . . . . . . . . . . . . . . . . . . . . . . . . . . . . . . . . . . . Hover . | . . . . . . . . . . . . . . . . . . . . . . . . . . . . . . . . . . . . Flight 2374 | . . . . . . . . . . . . . . . . . . . . . . . . . . . . . . 132 262 242 739 565 434 Fastest Speed 20 | 50 160 160 160 160 160 232 232 312 235 235 235 238 241 238 238 238 238 243 243 246 160 160 160 70 105 160 145 145 145 27 27 27 22 20 20 Average Speed 187 | 146 160 160 160 160 283 253 269 312 238 235 235 240 241 240 238 238 238 244 243 246 217 160 196 164 159 161 165 181 158 174 27 27 23 20 62 Slowest Speed 410 | 160 160 160 160 160 400 385 312 312 315 235 238 241 241 245 238 238 318 245 246 246 246 160 240 260 240 240 240 225 250 410 27 27 27 25 156 Overloaded Moves 28 | . . . . . . . . . . . . . . . . . . . . . . . . 28 . . . . . . . . . . . Propulsion Burnouts . | . . . . . . . . . . . . . . . . . . . . . . . . . . . . . . . . . . . . Robots Hopped 36 | . . . . . . . . . . . . . . . . . . . . . . . . . . . . . . 2 3 7 13 7 4 Cave-ins Triggered . | . . . . . . . . . . . . . . . . . . . . . . . . . . . . . . . . . . . . Exploration Rate (%) 45 | 5 94 8 71 99 44 61 51 38 15 62 30 56 3 77 10 52 13 89 11 83 68 69 37 16 89 11 39 93 27 61 20 10 66 22 25 Regions Visited 35 Branch Regions 13 Pre-discovered Areas 3 | . 1 . 1 . . . 1 . . . . . . . . . . . . . . . . . . . . . . . . . . . . Known Exits Taken 14 | . . . . 1 1 . 1 . 1 . 1 . 1 . 1 . . . 1 . . . . . . 1 . . 1 . 1 1 1 1 . Unknown Exits Taken 11 | 1 1 1 1 . . . . . . . . . . . . . . . . 1 1 1 1 . . . 1 1 . 1 . . . . . Scrap Searched 4 | . . . . 4 . . . . . . . . . . . . . . . . . . . . . . . . . . . . . . . Spaces Dug 95 | . . . . . . 7 . . 1 . 2 . . . . . 3 . 5 . . . . 1 . 38 3 . 4 3 2 3 7 5 11 Terrain Destroyed 959 | . . . . 17 20 31 . . 1 . 6 . . . 1 2 9 . 5 11 4 . 274 65 . 40 13 . 106 301 3 5 9 9 27 Melee . | . . . . . . . . . . . . . . . . . . . . . . . . . . . . . . . . . . . . Projectile 206 | . . . . . . . . . 1 . 3 . . . 1 2 9 . 5 1 4 . 17 13 . 4 11 . 44 38 3 5 9 9 27 AOE 751 | . . . . 17 20 31 . . . . 3 . . . . . . . . 10 . . 257 52 . 36 . . 62 263 . . . . . Terrain Rammed . | . . . . . . . . . . . . . . . . . . . . . . . . . . . . . . . . . . . . Walls Destroyed . | . . . . . . . . . . . . . . . . . . . . . . . . . . . . . . . . . . . . Machines Disabled . | . . . . . . . . . . . . . . . . . . . . . . . . . . . . . . . . . . . . Actions | -11 -10 -10 -10 -9 -8 -8 -8 -8 -7 -7 -7 -7 -6 -6 -6 -6 -5 -5 -5 -5 -5 -5 -5 -4 -4 -4 -4 -4 -3 -3 -3 -2 -2 -1 -1 --------- Run | Scr Mat Min Exi Min Mat Gar Mat Gar Fac Gar Fac Gar Fac Gar Fac Gar Fac Was Fac Ext Cet Arc Hub Fac Was Fac Arm Lab Res Qua Sec Res Tes Acc Com Total 21764 | 71 936 24 354 735 864 420 1001 296 881 739 1498 576 113 1290 474 397 712 544 405 690 270 47 345 970 403 381 904 190 1149 943 271 244 786 589 1252 Wait 1670 | . 103 . . 26 63 6 112 9 260 43 323 17 . 91 69 12 43 32 26 1 39 4 9 45 . 3 40 9 89 99 2 . 4 . 91 Move 17248 | 59 733 21 337 694 713 353 751 235 518 626 1044 503 105 1072 346 329 560 480 334 614 190 43 274 739 350 319 646 152 864 668 255 229 713 550 829 Hop 33 | . . . . . . . . . . . . . . . . . . . . . . . . . . . . . . 2 3 5 12 7 4 Pick Up 216 | 6 21 . 4 2 14 . 22 3 12 2 8 1 1 9 4 . 9 3 6 . 3 . 7 18 6 7 13 8 10 9 . . 3 . 5 Fast Attach 276 | 6 2 . . . 10 3 5 3 9 . 10 . 1 12 5 . 5 5 3 1 7 . 6 31 5 15 21 2 16 23 3 1 14 12 40 Attach 118 | . 1 . 2 1 4 2 3 1 3 1 2 . 1 5 2 . 7 1 2 . 3 . 4 14 6 2 12 5 11 15 . 1 2 . 5 Detach 34 | . . . . . . 1 . . . . 1 . . . . . 1 . . . . . . 5 2 2 3 . 2 10 . . 3 . 4 Swap 178 | . 5 . 2 . 10 5 9 1 10 4 15 9 2 12 4 7 7 3 4 4 5 . 6 13 1 3 17 1 9 2 . . . . 8 Drop 324 | . 14 . 5 2 23 2 17 6 20 1 15 1 . 19 9 . 8 10 8 1 13 . 11 15 11 19 24 3 17 12 1 1 8 5 23 Fire 1434 | . 53 3 . 2 26 31 76 26 46 48 65 38 3 53 35 20 65 10 19 25 10 . 27 85 22 11 102 10 124 103 7 7 27 13 242 Melee 21 | . . . 4 . . 1 . . . 1 . . . . . 15 . . . . . . . . . . . . . . . . . . . Ram . | . . . . . . . . . . . . . . . . . . . . . . . . . . . . . . . . . . . . Kick 3 | . . . . . . . . . . . . . . . . . . . . . . . . 2 . . . . . . . . . . 1 Crush 55 | . 4 . . 8 1 . 6 . 3 1 7 . . 2 . . 5 . 3 3 . . 1 3 . . 1 . 7 . . . . . . Escape Stasis 80 | . . . . . . 8 . 12 . 12 8 7 . 15 . 14 2 . . . . . . . . . . . . . . . . 2 . Rewire 74 | . . . . . . 8 . . . . . . . . . . . . . 41 . . . . . . 25 . . . . . . . . Trap . | . . . . . . . . . . . . . . . . . . . . . . . . . . . . . . . . . . . . Miscellaneous . | . . . . . . . . . . . . . . . . . . . . . . . . . . . . . . . . . . . . Route ------- -11/Scrapyard -10/Materials (discovered 3 exits: [*Mat x2] / [*Min]) -10/Mines -10/Exiles -9/Mines (discovered 2 exits: *Mat x2) -8/Materials (discovered 2 exits: [*Sto] / Gar) -8/Garrison (discovered 3 exits: *Mat x3) -8/Materials (discovered 3 exits: *Fac / [*Sto] / Gar) -8/Garrison -7/Factory (discovered 2 exits: [*Low] / Gar) -7/Garrison (discovered 3 exits: *Fac x3) -7/Factory (discovered 2 exits: *Fac / Gar) -7/Garrison (discovered 2 exits: *Fac x2) -6/Factory -6/Garrison (discovered 2 exits: *Fac x2) -6/Factory -6/Garrison (discovered 2 exits: *Fac x2) -5/Factory -5/Waste -5/Factory (discovered 4 exits: Upp x2 / *Ext x2) -5/Extension (discovered 2 exits: *Fac / *Cet) -5/Cetus (discovered 2 exits: *Fac / [*Arc]) -5/Archives -5/Hub_04(d) -4/Factory (discovered 5 exits: *Res x2 / Upp x2 / Arm) -4/Waste -4/Factory (discovered 3 exits: Upp x2 / *Arm) -4/Armory (discovered 2 exits: *Res / [*Lab]) -4/Lab -3/Research (discovered 3 exits: *Res x2 / *Qua) -3/Quarantine -3/Section 7 -2/Research (discovered 2 exits: *Tes x2) -2/Testing -1/Access -1/Command (discovered 2 exits: *Sur x2) By MAIN.C's Side History --------- Turn | Location | Event 4 | -11/Scrapyard | Discovered new exit (range 16) 103 | -11/Scrapyard | Entered Materials 316 | -10/Materials | Build established: Mutant 835 | -10/Materials | Discovered new exit (range 11) 1137 | -10/Materials | Discovered new exit (range 16) 1459 | -10/Materials | Discovered new exit (range 11) 1552 | -10/Materials | Repaired Lgt. Treads 1582 | -10/Materials | Entered Mines 1583 | -10/Mines | Assembled infested the area 1619 | -10/Mines | Deemed a non-threat by the Exiles lab entrance 1619 | -10/Mines | Discovered new exit (range 5) 1625 | -10/Mines | Entered Exiles 1665 | -10/Exiles | Met 8R-AWN 1696 | -10/Exiles | Met EX-HEX 1785 | -10/Exiles | Met EX-DEC 1887 | -10/Exiles | Learned location of Zion (-7) 1929 | -10/Exiles | Met EX-BIN 1950 | -10/Exiles | Aligned with FarCom system 1951 | -10/Exiles | Given EX-Vault access code 1996 | -10/Exiles | Opened EX-Vault 2006 | -10/Exiles | Found Potential Leg 2010 | -10/Exiles | Found Potential Leg 2018 | -10/Exiles | Found AWS/Gauss 2024 | -10/Exiles | Found Gui. Plasma Cannon 2057 | -10/Exiles | Warned to stay clear of 0b10 Research branches 2166 | -10/Exiles | Discovered new exit (range 10) 2182 | -10/Exiles | Stole three prototypes: Potential Leg, Gui. Plasma Cannon, AWS/Gauss 2182 | -10/Exiles | Entered Mines 2316 | -9/Mines | Identified exit to Materials 2603 | -9/Mines | Received a Mining Laser from a helpful Derelict 3159 | -9/Mines | Discovered exit to Materials (range 9) 3254 | -9/Mines | Found a hidden stash of uninstalled traps 3342 | -9/Mines | Entered Materials 3342 | -8/Materials | Accompanied by 1 ally 3342 | -8/Materials | Evolved 4 slots: Utility x3, Weapon x1 3347 | -8/Materials | Led the pair of lost Derelicts to an unsafe place 3475 | -8/Materials | Discovered new exit (range 7) 3896 | -8/Materials | Build established: Tank 4780 | -8/Materials | Repaired Hvy. EM Pulse Gun 5443 | -8/Materials | Garrison activated, responded to threat 5568 | -8/Materials | Identified exit to Garrison 5568 | -8/Materials | Entered Garrison 5802 | -8/Garrison | Triggered checkpoint 5969 | -8/Garrison | Discovered new exit (range 11) 6126 | -8/Garrison | Triggered checkpoint 6130 | -8/Garrison | Build established: Mutant 6170 | -8/Garrison | Triggered checkpoint 6229 | -8/Garrison | Lost 4 parts (2n2w) 6292 | -8/Garrison | Discovered new exit (range 14) 6519 | -8/Garrison | Discovered new exit (range 11) 6561 | -8/Garrison | Installed Relay Interface Framework 6577 | -8/Garrison | Entered Materials 7060 | -8/Materials | Build established: Skirmisher 7463 | -8/Materials | Discovered new exit (range 7) 8735 | -8/Materials | Discovered new exit (range 11) 8788 | -8/Materials | Garrison activated, responded to threat 8944 | -8/Materials | Identified exit to Garrison 8944 | -8/Materials | Entered Garrison 8960 | -8/Garrison | Expanded RIF knowledge: Robot Detection 9088 | -8/Garrison | Triggered checkpoint 9118 | -8/Garrison | Garrison Relay disabled 9292 | -8/Garrison | Triggered checkpoint 9355 | -8/Garrison | Triggered checkpoint 9464 | -8/Garrison | Discovered new exit (range 15) 9578 | -8/Garrison | Triggered checkpoint 9633 | -8/Garrison | Garrison Relay disabled 9765 | -8/Garrison | Entered Factory 9765 | -7/Factory | Evolved 2 slots: Propulsion x1, Utility x1 9767 | -7/Factory | FarCom data flow suspended 10053 | -7/Factory | Build established: Gunner 10369 | -7/Factory | Discovered new exit (range 15) 10620 | -7/Factory | Fabricated F-cell Engine (x1) 10741 | -7/Factory | Repaired Hrd. Heavy Armor Plating 10794 | -7/Factory | Repaired Hrd. Heavy Armor Plating? 10872 | -7/Factory | Repaired Enh. Autogun 11263 | -7/Factory | Repaired Adv. Treads 11422 | -7/Factory | Identified exit to Garrison 11422 | -7/Factory | Entered Garrison 11434 | -7/Garrison | Expanded RIF knowledge: Autooverride 11558 | -7/Garrison | Triggered checkpoint 11597 | -7/Garrison | Triggered checkpoint 11682 | -7/Garrison | Triggered checkpoint 11755 | -7/Garrison | Discovered new exit (range 10) 11968 | -7/Garrison | Triggered checkpoint 12048 | -7/Garrison | Discovered new exit (range 10) 12082 | -7/Garrison | Triggered checkpoint 12128 | -7/Garrison | Triggered checkpoint 12338 | -7/Garrison | Discovered new exit (range 9) 12414 | -7/Garrison | Triggered checkpoint 12496 | -7/Garrison | Garrison Relay disabled 12828 | -7/Garrison | Triggered checkpoint 12865 | -7/Garrison | Garrison Relay disabled 13078 | -7/Garrison | Entered Factory 14592 | -7/Factory | Found Prototype Launcher 14592 | -7/Factory | Identified Rocket Array 14628 | -7/Factory | Discovered new exit (range 15) 14940 | -7/Factory | Repaired Cld. Particle Cannon 15039 | -7/Factory | Repaired Adv. Treads 16091 | -7/Factory | Identified exit to Garrison 16091 | -7/Factory | Entered Garrison 16196 | -7/Garrison | Triggered checkpoint 16221 | -7/Garrison | Triggered checkpoint 16345 | -7/Garrison | Discovered new exit (range 12) 16391 | -7/Garrison | Expanded RIF knowledge: Autooverride 16462 | -7/Garrison | Triggered checkpoint 16496 | -7/Garrison | Garrison Relay disabled 16704 | -7/Garrison | Triggered checkpoint 16816 | -7/Garrison | Triggered checkpoint 16856 | -7/Garrison | Garrison Relay disabled 17080 | -7/Garrison | Triggered checkpoint 17105 | -7/Garrison | Garrison Relay disabled 17192 | -7/Garrison | Discovered new exit (range 14) 17428 | -7/Garrison | Entered Factory 17428 | -6/Factory | Accompanied by 1 ally 17428 | -6/Factory | Evolved 2 slots: Propulsion x1, Utility x1 17695 | -6/Factory | Identified exit to Garrison 17695 | -6/Factory | Entered Garrison 17695 | -6/Garrison | Accompanied by 1 ally 17802 | -6/Garrison | Triggered checkpoint 17892 | -6/Garrison | Garrison Relay disabled 18020 | -6/Garrison | Spotted B-75 Beast 18110 | -6/Garrison | Triggered checkpoint 18120 | -6/Garrison | Destroyed B-75 Beast 18254 | -6/Garrison | Discovered new exit (range 11) 18475 | -6/Garrison | Discovered new exit (range 14) 18523 | -6/Garrison | Expanded RIF knowledge: Autooverride 18788 | -6/Garrison | Triggered checkpoint 18862 | -6/Garrison | Garrison Relay disabled 19006 | -6/Garrison | Triggered checkpoint 19122 | -6/Garrison | Triggered checkpoint 19162 | -6/Garrison | Garrison Relay disabled 19350 | -6/Garrison | Triggered checkpoint 19484 | -6/Garrison | Triggered checkpoint 19535 | -6/Garrison | Garrison Relay disabled 19661 | -6/Garrison | Build established: Bothacker-Gunner 20570 | -6/Garrison | Entered Factory 20657 | -6/Factory | Build established: Bothacker-Tank 21459 | -6/Factory | Build established: Bothacker-Gunner 21583 | -6/Factory | Identified exit to Garrison 21583 | -6/Factory | Entered Garrison 21634 | -6/Garrison | Triggered checkpoint 21818 | -6/Garrison | Triggered checkpoint 21861 | -6/Garrison | Triggered checkpoint 22030 | -6/Garrison | Triggered checkpoint 22031 | -6/Garrison | Discovered new exit (range 15) 22246 | -6/Garrison | Discovered new exit (range 11) 22286 | -6/Garrison | Expanded RIF knowledge: Autoassimilate 22472 | -6/Garrison | Entered Factory 22472 | -5/Factory | Evolved 2 slots: Utility x2 23023 | -5/Factory | Discovered new exit (range 15) 23981 | -5/Factory | Fabricated Hrd. Heavy Armor Plating (x1) 24069 | -5/Factory | Sucked down chute 24069 | -5/Factory | Entered Waste 24069 | -5/Waste | Met up with 2 allies sucked down the chute earlier 24130 | -5/Waste | Spotted C-40 Crusher 24133 | -5/Waste | Spotted C-40 Crusher 24148 | -5/Waste | Spotted C-40 Crusher 24160 | -5/Waste | Spotted C-40 Crusher 24195 | -5/Waste | Spotted C-40 Crusher 24281 | -5/Waste | Spotted C-40 Crusher 24391 | -5/Waste | Build established: Bothacker-Mutant 24595 | -5/Waste | Discovered new exit (range 16) 24878 | -5/Waste | Warlord forces began an assault 24882 | -5/Waste | Allies destroyed C-40 Crusher 24914 | -5/Waste | Allies destroyed C-40 Crusher 24969 | -5/Waste | Found Damper Plating 25198 | -5/Waste | Build established: Bothacker-Gunner 25311 | -5/Waste | Entered Factory 25311 | -5/Factory | Accompanied by 19 allies 25396 | -5/Factory | Repaired Cld. Particle Cannon 25567 | -5/Factory | Identified exit to Upper Caves 25567 | -5/Factory | Identified exit to Extension 26125 | -5/Factory | Found Prototype Launcher 26125 | -5/Factory | Identified Tesla Bomb Launcher 26224 | -5/Factory | Entered Extension 26224 | -5/Extension | Accompanied by 6 allies 26314 | -5/Extension | Rescued A7 26425 | -5/Extension | Rescued a captive Derelict 26429 | -5/Extension | Rescued a captive Derelict 26622 | -5/Extension | Build established: Bothacker-Tank 27122 | -5/Extension | Spotted B-75 Beast 27134 | -5/Extension | Allies destroyed B-75 Beast 27155 | -5/Extension | Spotted B-75 Beast 27164 | -5/Extension | Allies destroyed B-75 Beast 27330 | -5/Extension | Rescued a captive Derelict 27573 | -5/Extension | Rescued a captive Derelict 27574 | -5/Extension | Rescued a captive Derelict 27605 | -5/Extension | Rescued a captive Derelict 27613 | -5/Extension | Rescued a captive Derelict 27655 | -5/Extension | Rescued a captive Derelict 27657 | -5/Extension | Rescued a captive Derelict 27724 | -5/Extension | Rescued a captive Derelict 27725 | -5/Extension | Rescued a captive Derelict 27753 | -5/Extension | Rescued a captive Derelict 27753 | -5/Extension | Rescued a captive Derelict 27814 | -5/Extension | Discovered new exit (range 10) 27816 | -5/Extension | Discovered new exit (range 6) 27855 | -5/Extension | Entered Cetus 27855 | -5/Cetus | Accompanied by 17 allies (A7) 27860 | -5/Cetus | Acquired a Cetus Manufacturing Module code from A7 27887 | -5/Cetus | Spotted Cetus Guard 27887 | -5/Cetus | Spotted Cetus Guard 27888 | -5/Cetus | Spotted Cetus Guard 27891 | -5/Cetus | Spotted Cetus Guard 27892 | -5/Cetus | Allies destroyed Cetus Guard 27903 | -5/Cetus | Allies destroyed Cetus Guard 27904 | -5/Cetus | Allies destroyed Cetus Guard 27909 | -5/Cetus | Allies destroyed Cetus Guard 28009 | -5/Cetus | Started Cetus Manufacturing Module 28034 | -5/Cetus | Manufactured an Enhanced Grunt 28045 | -5/Cetus | Escorted A7 to Cetus Mainframe 28059 | -5/Cetus | Manufactured an Enhanced Grunt 28084 | -5/Cetus | Manufactured an Enhanced Grunt 28095 | -5/Cetus | Discovered new exit (range 16) 28109 | -5/Cetus | Manufactured an Enhanced Grunt 28134 | -5/Cetus | Manufactured an Enhanced Grunt 28165 | -5/Cetus | Spotted Cetus Guard 28167 | -5/Cetus | Spotted Cetus Guard 28173 | -5/Cetus | Spotted Cetus Guard 28183 | -5/Cetus | Spotted Cetus Guard 28184 | -5/Cetus | Allies destroyed Cetus Guard 28191 | -5/Cetus | Allies destroyed Cetus Guard 28193 | -5/Cetus | Allies destroyed Cetus Guard 28193 | -5/Cetus | Extracted ID and sensor layout for unrecognized location from A7's data core 28220 | -5/Cetus | Discovered new exit (range 15) 28232 | -5/Cetus | Met Revision 17 28366 | -5/Cetus | Entered Archives 28366 | -5/Archives | Accompanied by 5 allies 28386 | -5/Archives | Met Zhirov 28392 | -5/Archives | Reinforcements dispatched to Archives 28403 | -5/Archives | Discovered new exit (range 15) 28437 | -5/Archives | Reinforcements dispatched to Archives 28439 | -5/Archives | Entered Hub_04(d) 28439 | -5/Hub_04(d) | Accompanied by 5 allies 28752 | -5/Hub_04(d) | Network Hub disabled 28908 | -5/Hub_04(d) | Spotted Lightning 28913 | -5/Hub_04(d) | Destroyed Lightning 28918 | -5/Hub_04(d) | Spotted Lightning 28935 | -5/Hub_04(d) | Allies destroyed Lightning 28935 | -5/Hub_04(d) | Allies destroyed Lightning 28958 | -5/Hub_04(d) | Found Prototype Device 28958 | -5/Hub_04(d) | Identified Exp. Phase Shifter 28967 | -5/Hub_04(d) | Found Prototype Processor 28976 | -5/Hub_04(d) | Found Exp. Phase Shifter 29010 | -5/Hub_04(d) | Build established: Scavenger-Tank 29039 | -5/Hub_04(d) | First assault squad dispatched 29050 | -5/Hub_04(d) | Spotted Lightning 29053 | -5/Hub_04(d) | Spotted Lightning 29053 | -5/Hub_04(d) | Spotted Lightning 29072 | -5/Hub_04(d) | System corruption reached 10% 29072 | -5/Hub_04(d) | Discovered new exit (range 13) 29107 | -5/Hub_04(d) | Entered Factory 29107 | -4/Factory | Evolved 2 slots: Power x1, Utility x1 29135 | -4/Factory | Lost 9 parts (1p4u4w) 29192 | -4/Factory | Discovered new exit (range 15) 29692 | -4/Factory | Identified Exp. Targeting Computer 29751 | -4/Factory | Identified exit to Upper Caves 29751 | -4/Factory | Identified exit to Armory 30000 | -4/Factory | Discovered new exit (range 15) 30178 | -4/Factory | Build established: Scavenger-Gunner 30357 | -4/Factory | First assault squad dispatched 30393 | -4/Factory | Lost 6 parts (2p2u2w) 30517 | -4/Factory | Core integrity fell below 50% 30549 | -4/Factory | Lost 5 parts (2n2u1w) 30708 | -4/Factory | Sucked down chute 30708 | -4/Factory | Entered Waste 30709 | -4/Waste | Joined by Warlord forces that had cleared the area 30725 | -4/Waste | Lost 6 parts (1p2u3w) 31016 | -4/Waste | Build established: Scavenger-Mutant 31027 | -4/Waste | Discovered new exit (range 15) 31120 | -4/Waste | Found Antimissile System 31359 | -4/Waste | Entered Factory 31359 | -4/Factory | Accompanied by 20 allies 31782 | -4/Factory | P-70 Sage assimilated allied QK-DDF(s) 31949 | -4/Factory | Entered Armory 31949 | -4/Armory | Accompanied by 14 allies 32133 | -4/Armory | Build established: Scavenger-Gunner 32481 | -4/Armory | System corruption reached 10% 32660 | -4/Armory | Fabricated Huge Storage Unit? 33074 | -4/Armory | Discovered new exit (range 4) 33223 | -4/Armory | Core integrity fell below 20% 33239 | -4/Armory | First assault squad dispatched 33296 | -4/Armory | Lost 5 parts (1p4u) 33326 | -4/Armory | System corruption reached 30% 33391 | -4/Armory | Lost 7 parts (1p1n2u3w) 33488 | -4/Armory | Discovered new exit (range 4) 33492 | -4/Armory | Entered Lab 33492 | -4/Lab | Discovered new exit (range 9) 33508 | -4/Lab | Hidden lab's door opened automatically 33508 | -4/Lab | Sensor layout match revealed 33509 | -4/Lab | Gained access to the hidden lab's interior 33585 | -4/Lab | Found Prototype Special Weapon 33594 | -4/Lab | Build established: Mutant 33608 | -4/Lab | Found Prototype Energy Cannon 33613 | -4/Lab | Found Prototype Energy Cannon 33620 | -4/Lab | Found Prototype Protection 33620 | -4/Lab | Identified Exp. Powered Armor 33638 | -4/Lab | Found Prototype Hackware 33685 | -4/Lab | Found Alien Artifact 33700 | -4/Lab | Found Alien Artifact 33715 | -4/Lab | Found Alien Artifact 33815 | -4/Lab | Identified Integrated Dissipator 33815 | -4/Lab | Installed Integrated Dissipator, increased core heat dissipation (+20) 33816 | -4/Lab | Entered Research 33816 | -3/Research | Evolved 2 slots: Propulsion x2 33976 | -3/Research | Repaired Biometal Heavy Treads 34206 | -3/Research | Local machine network offline 34264 | -3/Research | Discovered new exit (range 11) 34356 | -3/Research | Found Prototype Device 34356 | -3/Research | Identified Active Sensor Suite 34372 | -3/Research | Identified exit to Research 34850 | -3/Research | Found Prototype Processor 34850 | -3/Research | Identified Spectral Analyzer 35016 | -3/Research | Build established: Tank 35183 | -3/Research | System corruption reached 10% 35343 | -3/Research | Garrison activated, responded to threat 35365 | -3/Research | Allied Derelicts emerged from ambush trap array 35408 | -3/Research | Discovered exit to Research (range 13) 35516 | -3/Research | Identified Potential Cannon (x2) 35546 | -3/Research | Build established: Skirmisher 35552 | -3/Research | Lost 3 parts (1n1u1w) 35634 | -3/Research | Spotted B-90 Cyclops 35655 | -3/Research | Destroyed B-90 Cyclops 35660 | -3/Research | Discovered new exit (range 16) 35674 | -3/Research | Lost 3 parts (2n1w) 35695 | -3/Research | Identified exit to Quarantine 35697 | -3/Research | Entered Quarantine 35776 | -3/Quarantine | Identified Quantum Router 35947 | -3/Quarantine | First assault squad dispatched 35987 | -3/Quarantine | Local machine network offline 36004 | -3/Quarantine | Scanned by Researcher 36283 | -3/Quarantine | Build established: Hacker-Mutant 36533 | -3/Quarantine | Destroyed 7 combat bots 36873 | -3/Quarantine | Found Alien Artifact 36873 | -3/Quarantine | Identified Phase Armor 36888 | -3/Quarantine | Garrison activated, responded to threat 36916 | -3/Quarantine | Core integrity fell below 50% 37194 | -3/Quarantine | Found Alien Artifact 37275 | -3/Quarantine | Core integrity fell below 20% 37287 | -3/Quarantine | Identified Subatomic Replicator 37287 | -3/Quarantine | Used Subatomic Replicator to replicate Imp. Diametric Drive 37310 | -3/Quarantine | Spotted Fortress 37330 | -3/Quarantine | Discovered new exit (range 5) 37332 | -3/Quarantine | Entered Section 7 37345 | -3/Section 7 | Found Alien Artifact 37345 | -3/Section 7 | Identified Integrated Reactor 37345 | -3/Section 7 | Installed Integrated Reactor, increased core energy generation (+10) 37348 | -3/Section 7 | Spotted S7 Guard 37358 | -3/Section 7 | Found Alien Artifact 37358 | -3/Section 7 | Identified Core Physics Calibrator 37408 | -3/Section 7 | Spotted S7 Guard 37415 | -3/Section 7 | Found Alien Artifact 37415 | -3/Section 7 | Identified Navigation Efficiency Matrix 37415 | -3/Section 7 | Installed Navigation Efficiency Matrix, process failed with unexpected side effects 37421 | -3/Section 7 | Discovered exit to Research (range 5) 37424 | -3/Section 7 | Entered Research 37424 | -2/Research | Evolved 2 slots: Utility x1, Weapon x1 37424 | -2/Research | Identified Core Expander 37424 | -2/Research | Installed Core Expander, added new Power slot 37486 | -2/Research | Spotted B-90 Cyclops 37497 | -2/Research | Identified exit to Testing 37507 | -2/Research | Entered Testing 37539 | -2/Testing | Found Prototype Processor 37539 | -2/Testing | Identified Exp. Signal Interpreter 37560 | -2/Testing | Build established: Hacker-Sprinter 37563 | -2/Testing | Found Prototype Device 37563 | -2/Testing | Identified AEGIS Remote Shield 37608 | -2/Testing | Found Prototype Energy Cannon 37608 | -2/Testing | Identified Null Cannon 37713 | -2/Testing | Spotted PX-ZY74NE6XMN 37730 | -2/Testing | Discovered new exit (range 11) 37772 | -2/Testing | Identified exit to Access 37772 | -2/Testing | Entered Access 37772 | -1/Access | Evolved 2 slots (calibrated): Propulsion x2, Utility x3, -Weapon x3 37870 | -1/Access | Spotted B-99 Colossus 37934 | -1/Access | Discovered new exit (range 1) 37934 | -1/Access | Identified exit to Command 37934 | -1/Access | Entered Command 37990 | -1/Command | Repaired Imp. Diametric Drive 38092 | -1/Command | Spotted Combat Programmer 38172 | -1/Command | Met MAIN.C 38180 | -1/Command | 0b10 Conduit disabled 38266 | -1/Command | Destroyed MAIN.C Shell 38268 | -1/Command | Surrendered to MAIN.C 38268 | -1/Command | Loaded intel: 57 machine locations 38268 | -1/Command | Loaded intel: 101 trap records 38268 | -1/Command | Identified exit to Surface 38268 | -1/Command | Discovered exit to Surface (range 100) 38268 | -1/Command | Discovered exit to Surface (range 44) 38297 | -1/Command | Lost 10 parts (1p2n5u2w) 38323 | -1/Command | Found Prototype Device 38323 | -1/Command | Identified Exp. System Purifier 38326 | -1/Command | Found Prototype Device 38326 | -1/Command | Identified Exp. Cloaking Device 38328 | -1/Command | Found Prototype Device 38328 | -1/Command | Identified Femtoactuators 38332 | -1/Command | Found Prototype Device 38332 | -1/Command | Identified Exp. Weapon Cycler 38335 | -1/Command | Found Prototype Processor 38335 | -1/Command | Identified Exp. Armor Integrity Analyzer 38338 | -1/Command | Found Prototype Reactor 38338 | -1/Command | Identified Vortex Chain Reactor 38341 | -1/Command | Found Prototype Reactor 38341 | -1/Command | Identified Zero-point Reactor 38348 | -1/Command | MAIN.C activated Command garrisons 38369 | -1/Command | Found Spectral Analyzer 38389 | -1/Command | Unknown forces attacked Command 38389 | -1/Command | Spotted EQ-002 38389 | -1/Command | Spotted EQ-006 38389 | -1/Command | Spotted EQ-003 38389 | -1/Command | Spotted EQ-001 38397 | -1/Command | Spotted EQ-014 38400 | -1/Command | System corruption reached 10% 38405 | -1/Command | Spotted EQ-005 38405 | -1/Command | Spotted EQ-000 38485 | -1/Command | Spotted EQ-022 38485 | -1/Command | Spotted EQ-023 38486 | -1/Command | Spotted EQ-019 38491 | -1/Command | Spotted EQ-018 38495 | -1/Command | Destroyed EQ-022 38507 | -1/Command | Destroyed EQ-018 38523 | -1/Command | Found Corrupted Prototype Device 38523 | -1/Command | Identified Adv. Kinecellerator 38530 | -1/Command | Spotted EQ-028 38530 | -1/Command | Spotted EQ-031 38534 | -1/Command | Spotted EQ-026 38537 | -1/Command | Spotted EQ-033 38541 | -1/Command | Destroyed EQ-028 38548 | -1/Command | Destroyed EQ-026 38551 | -1/Command | Destroyed EQ-031 38552 | -1/Command | Spotted EQ-017 38567 | -1/Command | Destroyed EQ-033 38575 | -1/Command | Destroyed EQ-017 38584 | -1/Command | System corruption reached 30% 38589 | -1/Command | Spotted EQ-053 38589 | -1/Command | Spotted EQ-039 38589 | -1/Command | Spotted EQ-038 38604 | -1/Command | Build established: Generator-Mutant 38620 | -1/Command | Spotted EQ-054 38634 | -1/Command | Spotted EQ-052 38635 | -1/Command | Spotted EQ-032 38636 | -1/Command | Destroyed EQ-053 38660 | -1/Command | Destroyed EQ-032 38665 | -1/Command | Spotted EQ-055 38667 | -1/Command | Destroyed EQ-054 38705 | -1/Command | Spotted EQ-078 38759 | -1/Command | Found AEGIS Remote Shield 38787 | -1/Command | Spotted EQ-067 38820 | -1/Command | Spotted EQ-093 38821 | -1/Command | Spotted EQ-096 38874 | -1/Command | Found Prototype Processor 38874 | -1/Command | Identified Exp. Core Analyzer 38908 | -1/Command | Found Hvy. Reactive Plating 38931 | -1/Command | Spotted EQ-111 38945 | -1/Command | Found Exp. Core Analyzer 38947 | -1/Command | Spotted EQ-112 38961 | -1/Command | Spotted EQ-135 38962 | -1/Command | Spotted EQ-123 38962 | -1/Command | Spotted EQ-121 38965 | -1/Command | Spotted EQ-087 38967 | -1/Command | Destroyed EQ-087 38973 | -1/Command | Spotted EQ-136 38974 | -1/Command | Spotted EQ-120 38991 | -1/Command | Attackers retreated from Command 38991 | *** | Fortifying 0b10! Last Messages --------------- 38985_ System corrupted: Energy discharge (-244). 38985_ EQ-136 destroyed. 38985_ Slug penetrates EQ-121. 38986_ Slug penetrates Reinforced Barrier. 38986_ Slug penetrates EQ-121. 38986_ Slug penetrates Wall. 38987_ Slug penetrates M Guard. 38987_ EQ-121 suffers critical hit (Blast). 38987_ EQ-121 knocked back. 38988_ Destroyed Prototype Storage. 38988_ EQ-121 knocked back. 38990_ The unstable cave ceiling collapses. 38991_ ALERT: Enemy forces retreating. MAIN.C: I admit your assistance was pivotal here. It looks like I was right to trust you. This attack appears to have been designed to merely test our defenses, although it was nearly effective enough to force me to take the conflict to the next level. Investigating the origins of these bots should be one of our highest priorities... Map ----- +----------------------------------------------------+ | # # *=#????????????? | | # ##+###+ #########????????????? | | ## ### ??????????????????? | | !! ## #?# = # ??????????????????? | | !! ## #?# % # ???????????????????? | | !! ## #?# ] ???????????????????? | | #######+####/##### #????????????????????? | | ###### # T" ????????????????????? | | / ## *[ ""#????????????????????? | | # ## !%] #????????????????????? | | # ## == = ##???????????????????? | | # "" ## ==% ;#???????????????????? | | + """" ###;;;;!;%;#???????????????????? | | ###### """" ##;%;==*! #????????????????????? | | ?????# "" ###%;*%!]!##???????????????????? | | ###### #?#%%[*%!=;##################### | | "" # ###=! %%!!###??????????????????? | | T"" # ##; ; %!%]###?################## | | "" # # ; %!%%; #?# % % | | ############## #%[=]%*% #?# ! % ] | | #????######??# ; !*%% #?# !! | | #????# #??# ;%[=[ [ #?# % | | #????# < #??##; % ##?# | | ######????# #??# ; ##?# | | ??????????### #??# ; % ##?#" =*! | | ????????????# #??# ;= @ %###?# =%[ | | ????????????# #??# #%* % !!###?# "*= | | ???########## #"##;;!% % =###?# [! ! | | ???# ![! !% ##?# =!%*= = %%= | | ???# ! #?#!%*==[% %[ ! | | ???# % #=#?#!%%! % !=%* | | ???# = #?#=*! = [ | | #### %% % %% ! % *####%]=% | | !%!! [ =Y %%!%%% % " | | %% !% %= = % M%=!!!!!% = | | = = ! % % Y%!! % % | | ######### ### % # %=#### % | | ######?#; # #?# " | | #?## # ##" | | #### # ]! # #################### | | + # ! #### #??????????????????? | | #####+############??# ####################### | | # #??????###?????????????????????? | | # #??????????????????????????????? | | # ^ #??????????????????????????????? | | # #??????????????????????????????? | | #^ #??????????????????????????????? | | # ^ #??????????????????????????????? | | # ^"""" #??????????????????????????????? | | + """" ^ #??????????????????????????????? | +----------------------------------------------------+ Best States ------------- Heat Dissipation 148 Coolant Potential 100 Energy Generation 93 Energy Capacity 1050 Matter Stores 700 Matter Capacity 700 Sight Range 24 Robot Scan Range 20 Terrain Scan Range 24 Terrain Scan Density 10 Jamming Range 12 EM Shielding 4 Armor Coverage 3200 Resistance: KI 40 Resistance: TH 30 Resistance: EX 25 Resistance: EM 90 Core Shielding 40 Propulsion Shielding 33 Point Defense Rating 240 Weapon Cycling 30 Melee Speed Boost 50 Phase Shifting 20 Evasion (%) 70 Targeting Accuracy 16 Target Analysis 9 Core Analysis 12 Armor Integrity Analysis 50 Recoil Reduction 6 Kinecelleration 50 Salvage Targeting 3 Offensive Hacking 28 Defensive Hacking 25 Relay Coupler Types 4 Relay Coupler Value 77 Authchip Count 5 Trap Extractor Capacity 8 Item Schematics ----------------- Huge Storage Unit | -10/Materials | Hacked Hcp. Storage Unit | -10/Materials | Hacked Signal Interpreter | -10/Materials | Hacked Hrd. Heavy Armor Plating | -8/Materials | Scanalyzed Com. Linear Accelerator | -2/Testing | Hacked Robot Schematics ------------------ None Fabricated ------------ F-cell Engine | x1 | -7/Factory | Preloaded Hrd. Heavy Armor Plating | x1 | -5/Factory Huge Storage Unit | x1 | -4/Armory Alien Tech Used ----------------- Integrated Dissipator Phase Armor Subatomic Replicator Integrated Reactor Core Physics Calibrator Navigation Efficiency Matrix Core Expander Achievements -------------- None Challenges ------------ None Game ------ Seed CompositeArcStick Manual? 0 Play Time 04:46:53 Cumulative 602.5 hours Start 2022.12.06 @ 17:41:16 End 2022.12.07 @ 05:08:45 Sessions 9 Manual Loads 0 Difficulty Rogue Special Mode None Game No. 550 Rogue 550 Adventurer 0 Explorer 0 Win Type 8 Total 28 Types 14/2/7/2/0/0/1/1/1 Lore% 94 Gallery% 94 Achievement% 80 Wizard Run 0 Options --------- ASCII 0 Keyboard 0 Movement Arrows Keybinds 0 Fullscreen 1 Font 18/Smallcaps Map View 76x50 Tactical HUD 1 Map Filters NONE Filters NONE Steam 1 RUN: 47cd35dc-437e-4a59-afcb-60acad65e16c